Body Name,Body,Service Division Label,Service Division Code,Organisational Unit,Expenditure Category,Expenditure Code,CIPFA detailed expediture type,CIPFA detailed expediture code,Narrative,Date,Transaction number,Net Amount,Capital and Revenue,Supplier Name,Supplier ID
Chorley Borough Council,http://statistics.data.gov.uk/id/local-authority/30UE,Corporate Management,1008,Policy & Performance,Promotional Expenses,40159,Miscellaneous Expenses,5034,On air promotion and on site activities for Easter in Market Walk,17/06/2015,103322,600.00,Revenue,107 The Bee,51152
Chorley Borough Council,http://statistics.data.gov.uk/id/local-authority/30UE,Corporate Management,1008,Policy & Performance,Promotional Expenses,40159,Miscellaneous Expenses,5034,On air promotion and on site activities for Easter in Market Walk,17/06/2015,103323,"2,300.00",Revenue,107 The Bee,51152
Chorley Borough Council,http://statistics.data.gov.uk/id/local-authority/30UE,Capital,Capital,Streetscene & Leisure Contracts,Equipment,3014,Capital Expenditure,Capital,"240 litre wheeled bin, Colour : Blue,Including Chorley logo",03/06/2015,103756,"11,880.00",Capital,A&C Weber UK Ltd,53284
Chorley Borough Council,http://statistics.data.gov.uk/id/local-authority/30UE,Capital,Capital,Streetscene & Leisure Contracts,Equipment,3014,Capital Expenditure,Capital,"240 litre wheeled bin, Colour : Green, Including Chorley logo",12/06/2015,104023,"11,880.00",Capital,A&C Weber UK Ltd,53284
Chorley Borough Council,http://statistics.data.gov.uk/id/local-authority/30UE,Capital,Capital,Streetscene & Leisure Contracts,Equipment,3014,Capital Expenditure,Capital,"240 litre wheeled bin, Colour : Brown, Including Chorley logo",12/06/2015,104023,"11,880.00",Capital,A&C Weber UK Ltd,53284
Chorley Borough Council,http://statistics.data.gov.uk/id/local-authority/30UE,Capital,Capital,Housing,Grants,3002,Capital Expenditure,Capital,INV940 ADDRESS REDACTED,03/06/2015,103571,"3,410.00",Capital,Accessible Bathroom Solutions Ltd,58149
Chorley Borough Council,http://statistics.data.gov.uk/id/local-authority/30UE,Capital,Capital,Housing,Grants,3002,Capital Expenditure,Capital,INV 1005 ADDRESS REDACTED,12/06/2015,104063,"3,374.00",Capital,Accessible Bathroom Solutions Ltd,58149
Chorley Borough Council,http://statistics.data.gov.uk/id/local-authority/30UE,Unapportionable Central OHeads,1009,Governance,Mayoral Hospitality,40123,Expenses,5030,32 x bottles of wine for tables at Civic Dinner on 22nd May @ 8.50 per bottle.,10/06/2015,103961,272.00,Revenue,Ace Bars Ltd,54338
Chorley Borough Council,http://statistics.data.gov.uk/id/local-authority/30UE,Democratic Represent and  Mgnt,1007,Governance,Other Fees,40212,Miscellaneous Expenses,5034,Bar fee for April and May 2015.,10/06/2015,103962,325.00,Revenue,Ace Bars Ltd,54338
Chorley Borough Council,http://statistics.data.gov.uk/id/local-authority/30UE,Democratic Represent and  Mgnt,1007,Governance,Processional Routes,40177,Miscellaneous Expenses,5034,Catering for the Freedom of the Borough event on Saturday 6th June 2015. Numbers approximately 200 (to be confirmed).,24/06/2015,104195,"4,268.00",Revenue,Ace Bars Ltd,54338
Chorley Borough Council,http://statistics.data.gov.uk/id/local-authority/30UE,Unapportionable Central OHeads,1009,"Customer, ICT & Transactional",General Subscriptions,40146,Grants and Subscriptions,5031,ACS Navigator Subscription - (Benefits) - Annual Fee 495.00,24/06/2015,104219,495.00,Revenue,ACS Ltd,56512
Chorley Borough Council,http://statistics.data.gov.uk/id/local-authority/30UE,Democratic Represent and  Mgnt,1007,Streetscene & Leisure Contracts,External Contractor - Trust or Charity,50008,Private Contractors,5042,Active Nation Monthly Management Fee For the Period April 2015 - March 2016. Monthly Fee to be invoiced at the beginning,03/06/2015,103772,"31,211.54",Revenue,Active Nation UK Ltd,17144
Chorley Borough Council,http://statistics.data.gov.uk/id/local-authority/30UE,Central Support Services,1009,Health Environment & Neighbourhoods,Rent/Hire Of Premises,20017,Premises Rents,5007,Hire of facility for Doorstep sports club on Friday nights 7 - 9pm for May 15,24/06/2015,104143,487.50,Revenue,Active Nation UK Ltd,17144
Chorley Borough Council,http://statistics.data.gov.uk/id/local-authority/30UE,Service Management & Support,1009,Streetscene & Leisure Contracts,External Contractor,40198,Miscellaneous Expenses,5034,Carry out repairs to small car park retaining wall at Ackhurst Lodge Astley Park at price quoted,03/06/2015,103704,550.00,Revenue,Adlington Dry Stone Walling,63372
Chorley Borough Council,http://statistics.data.gov.uk/id/local-authority/30UE,Service Management & Support,1009,Streetscene & Leisure Contracts,External Contractor,40198,Miscellaneous Expenses,5034,Materials,03/06/2015,103704,120.00,Revenue,Adlington Dry Stone Walling,63372
Chorley Borough Council,http://statistics.data.gov.uk/id/local-authority/30UE,Unapportionable Central OHeads,1009,Streetscene & Leisure Contracts,Burglar Alarms & Security Systems,20075,Fixtures and Fittings,5010,Rental maintenance and monitoring of intruder alarm system at Bengal St depot PR7 1SA from 01/06/2015 to 31/05/2016 ,19/06/2015,104176,"2,359.90",Revenue,ADT Fire & Security,16645
Chorley Borough Council,http://statistics.data.gov.uk/id/local-authority/30UE,Unapportionable Central OHeads,1009,Governance,General Repairs - Reactive,20004,Repairs Maintenance & Alts,5005,Reactive blanket order until September 2015.,24/06/2015,104187,318.00,Revenue,ADT Fire & Security,16645
Chorley Borough Council,http://statistics.data.gov.uk/id/local-authority/30UE,Business Support,1095,Governance,Fire Alarms,20072,Fixtures and Fittings,5010,Maintenance of Gill St Fire Alarm - the Annexe 17 to 23 Gillibrand St for the period 27/06/2015 to 26/06/2016 ,24/06/2015,104228,330.04,Revenue,ADT Fire & Security,16645
Chorley Borough Council,http://statistics.data.gov.uk/id/local-authority/30UE,Service Management & Support,1009,Streetscene & Leisure Contracts,Vehicle Maintenance,30045,Direct Transport Costs,5016,Supply items as on quote number 2012574 from Wes Cripps to include carriage,10/06/2015,103879,651.96,Revenue,Aebi Schmidt UK Ltd,17287
Chorley Borough Council,http://statistics.data.gov.uk/id/local-authority/30UE,Unapportionable Central OHeads,1009,"Customer, ICT & Transactional",Uniforms,40039,"Clothing, Uniforms and Laundry",5025,New uniforms for customer service staff,26/06/2015,104300,687.94,Revenue,Alexandra RE:MWUK LTD,21752
Chorley Borough Council,http://statistics.data.gov.uk/id/local-authority/30UE,Unapportionable Central OHeads,1009,"Customer, ICT & Transactional",Uniforms,40039,"Clothing, Uniforms and Laundry",5025,New uniforms for customer service staff,26/06/2015,104301,695.48,Revenue,Alexandra RE:MWUK LTD,21752
Chorley Borough Council,http://statistics.data.gov.uk/id/local-authority/30UE,Unapportionable Central OHeads,1009,"Customer, ICT & Transactional",Uniforms,40039,"Clothing, Uniforms and Laundry",5025,New uniforms for customer service staff,26/06/2015,104302,638.68,Revenue,Alexandra RE:MWUK LTD,21752
Chorley Borough Council,http://statistics.data.gov.uk/id/local-authority/30UE,Unapportionable Central OHeads,1009,"Customer, ICT & Transactional",Uniforms,40039,"Clothing, Uniforms and Laundry",5025,New uniforms for customer service staff,26/06/2015,104303,612.35,Revenue,Alexandra RE:MWUK LTD,21752
Chorley Borough Council,http://statistics.data.gov.uk/id/local-authority/30UE,Unapportionable Central OHeads,1009,"Customer, ICT & Transactional",Bank Charges,40151,Miscellaneous Expenses,5034,PayPoint Price Changes,10/06/2015,103866,79.44,Revenue,Allpay Net Ltd,17242
Chorley Borough Council,http://statistics.data.gov.uk/id/local-authority/30UE,Unapportionable Central OHeads,1009,"Customer, ICT & Transactional",Bank Charges,40151,Miscellaneous Expenses,5034,Additional Account Fee,10/06/2015,103866,10.20,Revenue,Allpay Net Ltd,17242
Chorley Borough Council,http://statistics.data.gov.uk/id/local-authority/30UE,Unapportionable Central OHeads,1009,"Customer, ICT & Transactional",Bank Charges,40151,Miscellaneous Expenses,5034,Post Office Transactions,10/06/2015,103866,"1,261.96",Revenue,Allpay Net Ltd,17242
Chorley Borough Council,http://statistics.data.gov.uk/id/local-authority/30UE,Unapportionable Central OHeads,1009,"Customer, ICT & Transactional",Bank Charges,40151,Miscellaneous Expenses,5034,PayPoint Transactions,10/06/2015,103866,854.54,Revenue,Allpay Net Ltd,17242
Chorley Borough Council,http://statistics.data.gov.uk/id/local-authority/30UE,Unapportionable Central OHeads,1009,"Customer, ICT & Transactional",Bank Charges,40151,Miscellaneous Expenses,5034,Webconnect Monthly Charge,10/06/2015,103866,34.65,Revenue,Allpay Net Ltd,17242
Chorley Borough Council,http://statistics.data.gov.uk/id/local-authority/30UE,Democratic Represent and  Mgnt,1007,Shared Service Arrangement,Transport Operating Leases,30029,Contrct Hire & Operating Lease,5018,Mayoral Car,24/06/2015,103897,340.07,Revenue,Alphabet (Uk) Fleet Management Ltd,16651
Chorley Borough Council,http://statistics.data.gov.uk/id/local-authority/30UE,Democratic Represent and  Mgnt,1007,Shared Service Arrangement,Transport Operating Leases,30029,Contrct Hire & Operating Lease,5018,Mayoral Car,24/06/2015,103897,31.59,Revenue,Alphabet (Uk) Fleet Management Ltd,16651
Chorley Borough Council,http://statistics.data.gov.uk/id/local-authority/30UE,Unapportionable Central OHeads,1009,Shared Service Arrangement,Car Leasing Payment,14100,Direct Employee Expenses,5001,Car Leasing,24/06/2015,103897,252.96,Revenue,Alphabet (Uk) Fleet Management Ltd,16651
Chorley Borough Council,http://statistics.data.gov.uk/id/local-authority/30UE,Unapportionable Central OHeads,1009,Shared Service Arrangement,Car Leasing Payment,14100,Direct Employee Expenses,5001,Car Leasing,24/06/2015,103897,23.28,Revenue,Alphabet (Uk) Fleet Management Ltd,16651
Chorley Borough Council,http://statistics.data.gov.uk/id/local-authority/30UE,Planning Policy,1092,Shared Service Arrangement,Car Leasing Payment,14100,Direct Employee Expenses,5001,Car Leasing,24/06/2015,103897,237.46,Revenue,Alphabet (Uk) Fleet Management Ltd,16651
Chorley Borough Council,http://statistics.data.gov.uk/id/local-authority/30UE,Planning Policy,1092,Shared Service Arrangement,Car Leasing Payment,14100,Direct Employee Expenses,5001,Car Leasing,24/06/2015,103897,21.24,Revenue,Alphabet (Uk) Fleet Management Ltd,16651
Chorley Borough Council,http://statistics.data.gov.uk/id/local-authority/30UE,Service Management & Support,1009,Shared Service Arrangement,Car Leasing Payment,14100,Direct Employee Expenses,5001,Car Leasing,24/06/2015,103897,147.43,Revenue,Alphabet (Uk) Fleet Management Ltd,16651
Chorley Borough Council,http://statistics.data.gov.uk/id/local-authority/30UE,Service Management & Support,1009,Shared Service Arrangement,Car Leasing Payment,14100,Direct Employee Expenses,5001,Car Leasing,24/06/2015,103897,12.79,Revenue,Alphabet (Uk) Fleet Management Ltd,16651
Chorley Borough Council,http://statistics.data.gov.uk/id/local-authority/30UE,Economic Development,1096,Shared Service Arrangement,Car Leasing Payment,14100,Direct Employee Expenses,5001,Car Leasing,10/06/2015,103899,"3,088.41",Revenue,Alphabet (Uk) Fleet Management Ltd,16651
Chorley Borough Council,http://statistics.data.gov.uk/id/local-authority/30UE,Economic Development,1096,Shared Service Arrangement,Car Leasing Payment,14100,Direct Employee Expenses,5001,Car Leasing,10/06/2015,103899,260.34,Revenue,Alphabet (Uk) Fleet Management Ltd,16651
Chorley Borough Council,http://statistics.data.gov.uk/id/local-authority/30UE,Building Control,1090,Shared Service Arrangement,Car Leasing Payment,14100,Direct Employee Expenses,5001,Car Leasing,10/06/2015,103899,"2,269.70",Revenue,Alphabet (Uk) Fleet Management Ltd,16651
Chorley Borough Council,http://statistics.data.gov.uk/id/local-authority/30UE,Building Control,1090,Shared Service Arrangement,Car Leasing Payment,14100,Direct Employee Expenses,5001,Car Leasing,10/06/2015,103899,189.72,Revenue,Alphabet (Uk) Fleet Management Ltd,16651
Chorley Borough Council,http://statistics.data.gov.uk/id/local-authority/30UE,Corporate Management,1008,Shared Service Arrangement,Car Leasing Payment,14100,Direct Employee Expenses,5001,Car Leasing,10/06/2015,103899,"3,009.63",Revenue,Alphabet (Uk) Fleet Management Ltd,16651
Chorley Borough Council,http://statistics.data.gov.uk/id/local-authority/30UE,Corporate Management,1008,Shared Service Arrangement,Car Leasing Payment,14100,Direct Employee Expenses,5001,Car Leasing,10/06/2015,103899,272.35,Revenue,Alphabet (Uk) Fleet Management Ltd,16651
Chorley Borough Council,http://statistics.data.gov.uk/id/local-authority/30UE,Unapportionable Central OHeads,1009,Shared Service Arrangement,Car Leasing Payment,14100,Direct Employee Expenses,5001,Car Leasing,17/06/2015,104075,"2,197.18",Revenue,Alphabet (Uk) Fleet Management Ltd,16651
Chorley Borough Council,http://statistics.data.gov.uk/id/local-authority/30UE,Unapportionable Central OHeads,1009,Shared Service Arrangement,Car Leasing Payment,14100,Direct Employee Expenses,5001,Car Leasing,17/06/2015,104075,199.63,Revenue,Alphabet (Uk) Fleet Management Ltd,16651
Chorley Borough Council,http://statistics.data.gov.uk/id/local-authority/30UE,Unapportionable Central OHeads,1009,Governance,Cleaning Materials,40019,"Equipment, Furniture & Materia",5023,provision for cleaning materials,03/06/2015,103720,797.49,Revenue,Amtoll Ltd,21738
Chorley Borough Council,http://statistics.data.gov.uk/id/local-authority/30UE,Economic Development,1096,Economic Development,Cleaning Materials,40019,"Equipment, Furniture & Materia",5023,Please supply janitorial products as per email ,03/06/2015,103721,455.66,Revenue,Amtoll Ltd,21738
Chorley Borough Council,http://statistics.data.gov.uk/id/local-authority/30UE,Economic Development,1096,Economic Development,Cleaning Materials,40019,"Equipment, Furniture & Materia",5023,Please supply janitorial products as per email ,26/06/2015,104270,325.47,Revenue,Amtoll Ltd,21738
Chorley Borough Council,http://statistics.data.gov.uk/id/local-authority/30UE,Service Management & Support,1009,Streetscene & Leisure Contracts,External Contractor,40198,Miscellaneous Expenses,5034,Carryout strimming works to grass banking`s as per your quote Central Avenue banking`s Astley Park pond banking,10/06/2015,103726,"2,805.00",Revenue,AP Broom Landscapes,67257
Chorley Borough Council,http://statistics.data.gov.uk/id/local-authority/30UE,Planning Policy,1092,Planning,Consultants` Fees,40077,Services,5027,"50% of agreed consultancy fee 1,856.25 7% costs on consultancy 129.94 50% of agreed fieldwork budget 1,011.25",03/06/2015,103654,"2,997.44",Revenue,Arc4,60831
Chorley Borough Council,http://statistics.data.gov.uk/id/local-authority/30UE,Central Support Services,1009,Health Environment & Neighbourhoods,Miscellaneous Expenses,40200,Miscellaneous Expenses,5034,Fixing of Alleygate pillar - back of Regent Road,17/06/2015,103785,380.00,Revenue,Ark Welding Ltd,18154
Chorley Borough Council,http://statistics.data.gov.uk/id/local-authority/30UE,Service Management & Support,1009,Streetscene & Leisure Contracts,External Contractor,40198,Miscellaneous Expenses,5034,Fabricated white posts and chain for surrounding VC commemorative stone,05/06/2015,103786,265.00,Revenue,Ark Welding Ltd,18154
Chorley Borough Council,http://statistics.data.gov.uk/id/local-authority/30UE,Service Management & Support,1009,Streetscene & Leisure Contracts,Supplies-Grounds Maintenance,40025,"Equipment, Furniture & Materia",5023,Supply steel for bays in Bengal St depot as requested,10/06/2015,103855,287.00,Revenue,Ark Welding Ltd,18154
Chorley Borough Council,http://statistics.data.gov.uk/id/local-authority/30UE,Service Management & Support,1009,Streetscene & Leisure Contracts,External Contractor,40198,Miscellaneous Expenses,5034,Supply and fit blanking panels on multi unit at Clayton Brook,10/06/2015,103857,325.00,Revenue,Ark Welding Ltd,18154
Chorley Borough Council,http://statistics.data.gov.uk/id/local-authority/30UE,Service Management & Support,1009,Streetscene & Leisure Contracts,External Contractor,40198,Miscellaneous Expenses,5034,Replace steps on small multi unit at Whittle le Woods play area,10/06/2015,103858,375.00,Revenue,Ark Welding Ltd,18154
Chorley Borough Council,http://statistics.data.gov.uk/id/local-authority/30UE,Service Management & Support,1009,Streetscene & Leisure Contracts,Car Leasing Payment,14100,Direct Employee Expenses,5001,Car Leasing,03/06/2015,103695,"2,527.20",Revenue,Arnold Clark Finance Ltd,20685
Chorley Borough Council,http://statistics.data.gov.uk/id/local-authority/30UE,Service Management & Support,1009,Streetscene & Leisure Contracts,Car Leasing Payment,14100,Direct Employee Expenses,5001,Car Leasing,03/06/2015,103695,187.41,Revenue,Arnold Clark Finance Ltd,20685
Chorley Borough Council,http://statistics.data.gov.uk/id/local-authority/30UE,Central Support Services,1009,Shared Service Arrangement,Car Leasing Payment,14100,Direct Employee Expenses,5001,Car Leasing,12/06/2015,103955,"3,151.32",Revenue,Arnold Clark Finance Ltd,20685
Chorley Borough Council,http://statistics.data.gov.uk/id/local-authority/30UE,Central Support Services,1009,Shared Service Arrangement,Car Leasing Payment,14100,Direct Employee Expenses,5001,Car Leasing,12/06/2015,103955,270.95,Revenue,Arnold Clark Finance Ltd,20685
Chorley Borough Council,http://statistics.data.gov.uk/id/local-authority/30UE,Economic Development,1096,Shared Service Arrangement,Car Leasing Payment,14100,Direct Employee Expenses,5001,Car Leasing,24/06/2015,104188,"3,384.00",Revenue,Arnold Clark Finance Ltd,20685
Chorley Borough Council,http://statistics.data.gov.uk/id/local-authority/30UE,Economic Development,1096,Shared Service Arrangement,Car Leasing Payment,14100,Direct Employee Expenses,5001,Car Leasing,24/06/2015,104188,274.80,Revenue,Arnold Clark Finance Ltd,20685
Chorley Borough Council,http://statistics.data.gov.uk/id/local-authority/30UE,Unapportionable Central OHeads,1009,Shared Service Arrangement,Consultants` Fees,40077,Services,5027,Provision of specialist financial advice on the Extra Care scheme. Up to two days work plus expenses.,19/06/2015,104197,"1,008.07",Revenue,AWICS Limited,70099
Chorley Borough Council,http://statistics.data.gov.uk/id/local-authority/30UE,Unapportionable Central OHeads,1009,Shared Service Arrangement,Consultants` Fees,40077,Services,5027,rial fare,19/06/2015,104197,63.20,Revenue,AWICS Limited,70099
Chorley Borough Council,http://statistics.data.gov.uk/id/local-authority/30UE,Unapportionable Central OHeads,1009,Shared Service Arrangement,Consultants` Fees,40077,Services,5027,Provision of specialist financial advice on the Extra Care scheme. Up to two days work plus expenses.,24/06/2015,104230,325.00,Revenue,AWICS Limited,70099
Chorley Borough Council,http://statistics.data.gov.uk/id/local-authority/30UE,Service Management & Support,1009,Streetscene & Leisure Contracts,Tools & Equipment - Purchase,40003,"Equipment, Furniture & Materia",5023,Supply 1 x cut and collect mower as tendered for via the chest. Deliver to Bengal St depot as stated in quotation.,10/06/2015,103834,"11,600.00",Revenue,Balmers Garden Machinery,17075
Chorley Borough Council,http://statistics.data.gov.uk/id/local-authority/30UE,Corporate Management,1008,Shared Service Arrangement,Bank Charges,40151,Miscellaneous Expenses,5034,April Charges,10/06/2015,103265,318.88,Revenue,Barclaycard Merchant Services,61601
Chorley Borough Council,http://statistics.data.gov.uk/id/local-authority/30UE,Corporate Management,1008,Shared Service Arrangement,Bank Charges,40151,Miscellaneous Expenses,5034,April Charges,10/06/2015,103267,662.38,Revenue,Barclaycard Merchant Services,61601
Chorley Borough Council,http://statistics.data.gov.uk/id/local-authority/30UE,Corporate Management,1008,Shared Service Arrangement,Bank Charges,40151,Miscellaneous Expenses,5034,April Charges,10/06/2015,103268,474.76,Revenue,Barclaycard Merchant Services,61601
Chorley Borough Council,http://statistics.data.gov.uk/id/local-authority/30UE,Democratic Represent and  Mgnt,1007,Streetscene & Leisure Contracts,Playground Equipment,40008,"Equipment, Furniture & Materia",5023,"Work completed @ Tatton Rec, Chorley (painted play area)",17/06/2015,104014,940.00,Revenue,Barrie Thompson,19585
Chorley Borough Council,http://statistics.data.gov.uk/id/local-authority/30UE,Capital,Capital,Streetscene & Leisure Contracts,Other Contractor,3012,Capital Expenditure,Capital,In accordance with quotation ref. no. QT6632 Scope of WorksThe supply and delivery of the CCTV column bolt-frame ,24/06/2015,103257,"8,935.00",Capital,Baydale Control Systems,21154
Chorley Borough Council,http://statistics.data.gov.uk/id/local-authority/30UE,Central Support Services,1009,Health Environment & Neighbourhoods,Tools & Equipment - Maintenance,40005,"Equipment, Furniture & Materia",5023,Maintenance of CCTV,10/06/2015,103892,855.38,Revenue,Baydale Control Systems,21154
Chorley Borough Council,http://statistics.data.gov.uk/id/local-authority/30UE,Central Support Services,1009,Health Environment & Neighbourhoods,Tools & Equipment - Maintenance,40005,"Equipment, Furniture & Materia",5023,Maintenance of CCTV,10/06/2015,103893,377.92,Revenue,Baydale Control Systems,21154
Chorley Borough Council,http://statistics.data.gov.uk/id/local-authority/30UE,Central Support Services,1009,Health Environment & Neighbourhoods,Tools & Equipment - Maintenance,40005,"Equipment, Furniture & Materia",5023,Maintenance of CCTV,19/06/2015,104153,695.00,Revenue,Baydale Control Systems,21154
Chorley Borough Council,http://statistics.data.gov.uk/id/local-authority/30UE,Central Support Services,1009,Health Environment & Neighbourhoods,Tools & Equipment - Maintenance,40005,"Equipment, Furniture & Materia",5023,Maintenance of CCTV,19/06/2015,104157,278.00,Revenue,Baydale Control Systems,21154
Chorley Borough Council,http://statistics.data.gov.uk/id/local-authority/30UE,Unapportionable Central OHeads,1009,"Customer, ICT & Transactional",Consultants` Fees,40077,Services,5027,"Support as agreed with Customer, Transactional and ICT services 3 days a week",12/06/2015,103956,"1,800.00",Revenue,REDACTED PERSONAL DATA,22238
Chorley Borough Council,http://statistics.data.gov.uk/id/local-authority/30UE,Local Tax Collection,1010,"Customer, ICT & Transactional",Legal Fees,40171,Miscellaneous Expenses,5034,APS Settlement Sum,26/06/2015,104326,"106,785.55",Revenue,Bevan Brittan LLP Solicitors,69456
Chorley Borough Council,http://statistics.data.gov.uk/id/local-authority/30UE,Central Support Services,1009,Health Environment & Neighbourhoods,Training Course Fees,17010,Indirect Employee Expenses,5002,For place to attend Level 3 Supporting and teaching of Physical Education in Schools.,17/06/2015,104022,"1,700.00",Revenue,Blackburn College,18193
Chorley Borough Council,http://statistics.data.gov.uk/id/local-authority/30UE,Democratic Represent and  Mgnt,1007,Governance,Gas,20014,Energy Costs,5006,Astley Park,26/06/2015,104258,268.92,Revenue,British Gas Business,22242
Chorley Borough Council,http://statistics.data.gov.uk/id/local-authority/30UE,Community Development,1097,Governance,Gas,20014,Energy Costs,5006,35-39 Market St,26/06/2015,104258,39.57,Revenue,British Gas Business,22242
Chorley Borough Council,http://statistics.data.gov.uk/id/local-authority/30UE,Community Development,1097,Governance,Gas,20014,Energy Costs,5006,35-39 Market St,26/06/2015,104258,38.08,Revenue,British Gas Business,22242
Chorley Borough Council,http://statistics.data.gov.uk/id/local-authority/30UE,Unapportionable Central OHeads,1009,Governance,Gas,20014,Energy Costs,5006,Bengal Street,26/06/2015,104258,203.31,Revenue,British Gas Business,22242
Chorley Borough Council,http://statistics.data.gov.uk/id/local-authority/30UE,Democratic Represent and  Mgnt,1007,Governance,Gas,20014,Energy Costs,5006,Astley Park,26/06/2015,104258,119.92,Revenue,British Gas Business,22242
Chorley Borough Council,http://statistics.data.gov.uk/id/local-authority/30UE,Democratic Represent and  Mgnt,1007,Governance,Gas,20014,Energy Costs,5006,Astley Park,26/06/2015,104258,106.40,Revenue,British Gas Business,22242
Chorley Borough Council,http://statistics.data.gov.uk/id/local-authority/30UE,Democratic Represent and  Mgnt,1007,Governance,Gas,20014,Energy Costs,5006,Clayton brook CC,26/06/2015,104258,126.70,Revenue,British Gas Business,22242
Chorley Borough Council,http://statistics.data.gov.uk/id/local-authority/30UE,Democratic Represent and  Mgnt,1007,Governance,Gas,20014,Energy Costs,5006,Clayton brook CC,26/06/2015,104258,110.18,Revenue,British Gas Business,22242
Chorley Borough Council,http://statistics.data.gov.uk/id/local-authority/30UE,Democratic Represent and  Mgnt,1007,Governance,Gas,20014,Energy Costs,5006,11 Hallgate,26/06/2015,104258,185.31,Revenue,British Gas Business,22242
Chorley Borough Council,http://statistics.data.gov.uk/id/local-authority/30UE,Democratic Represent and  Mgnt,1007,Governance,Gas,20014,Energy Costs,5006,11 Hallgate,26/06/2015,104258,114.81,Revenue,British Gas Business,22242
Chorley Borough Council,http://statistics.data.gov.uk/id/local-authority/30UE,Democratic Represent and  Mgnt,1007,Governance,Gas,20014,Energy Costs,5006,Eaves Green CC,26/06/2015,104258,37.29,Revenue,British Gas Business,22242
Chorley Borough Council,http://statistics.data.gov.uk/id/local-authority/30UE,Democratic Represent and  Mgnt,1007,Governance,Gas,20014,Energy Costs,5006,Eaves Green CC,26/06/2015,104258,197.61,Revenue,British Gas Business,22242
Chorley Borough Council,http://statistics.data.gov.uk/id/local-authority/30UE,Unapportionable Central OHeads,1009,Governance,Gas,20014,Energy Costs,5006,Civic Offices,26/06/2015,104258,978.81,Revenue,British Gas Business,22242
Chorley Borough Council,http://statistics.data.gov.uk/id/local-authority/30UE,Unapportionable Central OHeads,1009,Governance,Gas,20014,Energy Costs,5006,Civic Offices,26/06/2015,104258,962.12,Revenue,British Gas Business,22242
Chorley Borough Council,http://statistics.data.gov.uk/id/local-authority/30UE,Democratic Represent and  Mgnt,1007,Governance,Gas,20014,Energy Costs,5006,Astley Park,26/06/2015,104258,574.25,Revenue,British Gas Business,22242
Chorley Borough Council,http://statistics.data.gov.uk/id/local-authority/30UE,Unapportionable Central OHeads,1009,Governance,Gas,20014,Energy Costs,5006,Town Hall,26/06/2015,104258,618.25,Revenue,British Gas Business,22242
Chorley Borough Council,http://statistics.data.gov.uk/id/local-authority/30UE,Unapportionable Central OHeads,1009,Governance,Gas,20014,Energy Costs,5006,Town Hall,26/06/2015,104258,719.79,Revenue,British Gas Business,22242
Chorley Borough Council,http://statistics.data.gov.uk/id/local-authority/30UE,Unapportionable Central OHeads,1009,Governance,Gas,20014,Energy Costs,5006,Town Hall,26/06/2015,104258,43.53,Revenue,British Gas Business,22242
Chorley Borough Council,http://statistics.data.gov.uk/id/local-authority/30UE,Democratic Represent and  Mgnt,1007,Governance,Gas,20014,Energy Costs,5006,Astley Park,26/06/2015,104258,973.27,Revenue,British Gas Business,22242
Chorley Borough Council,http://statistics.data.gov.uk/id/local-authority/30UE,Central Support Services,1009,"Customer, ICT & Transactional",Telephones - Calls,40084,Communication and Computing,5028,Usage Charges,05/06/2015,103728,247.50,Revenue,British Telecommunications Plc,17131
Chorley Borough Council,http://statistics.data.gov.uk/id/local-authority/30UE,Central Support Services,1009,"Customer, ICT & Transactional",Telephones - Other,40085,Communication and Computing,5028,One-off charges,05/06/2015,103728,259.00,Revenue,British Telecommunications Plc,17131
Chorley Borough Council,http://statistics.data.gov.uk/id/local-authority/30UE,Central Support Services,1009,"Customer, ICT & Transactional",Telephones - Rentals,40083,Communication and Computing,5028,Recurring Charges,05/06/2015,103728,"2,722.20",Revenue,British Telecommunications Plc,17131
Chorley Borough Council,http://statistics.data.gov.uk/id/local-authority/30UE,Capital,Capital,Streetscene & Leisure Contracts,Other Contractor,3012,Capital Expenditure,Capital,"Works to relocate joint box at Ranglett`s Recreation Ground, Pilling Lane, Chorley OpenReach Ref BLM314/226609/DAW",26/06/2015,104288,"1,643.13",Capital,British Telecommunications Plc,17131
Chorley Borough Council,http://statistics.data.gov.uk/id/local-authority/30UE,Capital,Capital,Governance,Main Contractor,3007,Capital Expenditure,Capital,Conservation works at Astley Hall.,26/06/2015,104304,"21,294.86",Capital,Bullen Conservation Ltd,68424
Chorley Borough Council,http://statistics.data.gov.uk/id/local-authority/30UE,Service Management & Support,1009,Streetscene & Leisure Contracts,Supplies-Grounds Maintenance,40025,"Equipment, Furniture & Materia",5023,Supply 100 x bags of Highway C2 fast setting mortar to be delivered to Bengal St depot,24/06/2015,104266,634.48,Revenue,C & W BERRY LIMITED,18180
Chorley Borough Council,http://statistics.data.gov.uk/id/local-authority/30UE,Service Management & Support,1009,Streetscene & Leisure Contracts,External Contractor,40198,Miscellaneous Expenses,5034,Carryout jetting investigation works at various sites as requested,12/06/2015,103914,360.00,Revenue,C J Lyon,16579
Chorley Borough Council,http://statistics.data.gov.uk/id/local-authority/30UE,Service Management & Support,1009,Streetscene & Leisure Contracts,Vehicle Maintenance,30045,Direct Transport Costs,5016,Carryout FTA repairs as per inspection report on PN02HRL as requested,03/06/2015,103626,441.00,Revenue,C P Davidson & Sons Ltd,21093
Chorley Borough Council,http://statistics.data.gov.uk/id/local-authority/30UE,Service Management & Support,1009,Streetscene & Leisure Contracts,Vehicle Maintenance,30045,Direct Transport Costs,5016,Carryout FTA repairs as per inspection sheet on DX05CXG as requested,03/06/2015,103631,453.80,Revenue,C P Davidson & Sons Ltd,21093
Chorley Borough Council,http://statistics.data.gov.uk/id/local-authority/30UE,Service Management & Support,1009,Streetscene & Leisure Contracts,Vehicle Maintenance,30045,Direct Transport Costs,5016,Repairs carried out to steering on DK55EEF King pins seized remove axle and free off and replace King pin kit as required.,03/06/2015,103632,562.60,Revenue,C P Davidson & Sons Ltd,21093
Chorley Borough Council,http://statistics.data.gov.uk/id/local-authority/30UE,Service Management & Support,1009,Streetscene & Leisure Contracts,Vehicle Maintenance,30045,Direct Transport Costs,5016,Carry out pre MOT inspection and repairs and take for annual test on RV14DVB as required,03/06/2015,103634,838.22,Revenue,C P Davidson & Sons Ltd,21093
Chorley Borough Council,http://statistics.data.gov.uk/id/local-authority/30UE,Service Management & Support,1009,Streetscene & Leisure Contracts,Vehicle Maintenance,30045,Direct Transport Costs,5016,Investigate and carryout repairs to throttle on PN02HRL run up and test OK,12/06/2015,104025,447.09,Revenue,C P Davidson & Sons Ltd,21093
Chorley Borough Council,http://statistics.data.gov.uk/id/local-authority/30UE,Service Management & Support,1009,Streetscene & Leisure Contracts,Vehicle Maintenance,30045,Direct Transport Costs,5016,Investigate grinding on vehicle found prop shaft bearing collapsed. Remove shaft and take for repair. Refit propshaft run,26/06/2015,104285,613.75,Revenue,C P Davidson & Sons Ltd,21093
Chorley Borough Council,http://statistics.data.gov.uk/id/local-authority/30UE,Unapportionable Central OHeads,1009,"Customer, ICT & Transactional",Emergency Call Out System,40096,Communication and Computing,5028,Out of hours call charges May 2015,12/06/2015,103929,456.96,Revenue,CallCare Ltd,20257
Chorley Borough Council,http://statistics.data.gov.uk/id/local-authority/30UE,Unapportionable Central OHeads,1009,"Customer, ICT & Transactional",Emergency Call Out System,40096,Communication and Computing,5028,Out of hours standing charge July 2015,12/06/2015,103929,120.00,Revenue,CallCare Ltd,20257
Chorley Borough Council,http://statistics.data.gov.uk/id/local-authority/30UE,Unapportionable Central OHeads,1009,"Customer, ICT & Transactional",Photocopier Charges,40047,"Printing, Stationery & General",5026,print charges civic offices,26/06/2015,104148,"1,281.21",Revenue,Canon (UK) Ltd,17492
Chorley Borough Council,http://statistics.data.gov.uk/id/local-authority/30UE,Unapportionable Central OHeads,1009,"Customer, ICT & Transactional",IT Software - Annual Licences,40101,Communication and Computing,5028,"Academy Remote Support charges for 2015 16. 31,750 plus V.A.T.",10/06/2015,103951,"31,750.00",Revenue,Capita Business Services Ltd,17151
Chorley Borough Council,http://statistics.data.gov.uk/id/local-authority/30UE,Service Management & Support,1009,Streetscene & Leisure Contracts,Tools & Equipment - Purchase,40003,"Equipment, Furniture & Materia",5023,G5 AED with carry sleeve ready kit and 3D wall signs kit for Yarrow Valley Country Park.  As per quote,03/06/2015,103661,820.00,Revenue,Cardiac Science,60486
Chorley Borough Council,http://statistics.data.gov.uk/id/local-authority/30UE,Service Management & Support,1009,Streetscene & Leisure Contracts,Tools & Equipment - Purchase,40003,"Equipment, Furniture & Materia",5023,Shipping,03/06/2015,103661,10.00,Revenue,Cardiac Science,60486
Chorley Borough Council,http://statistics.data.gov.uk/id/local-authority/30UE,Unapportionable Central OHeads,1009,Governance,General Repairs - Reactive,20004,Repairs Maintenance & Alts,5005,Reactive blanket order until September 2015.,19/06/2015,103918,480.00,Revenue,Castle mount Contracts Ltd,66621
Chorley Borough Council,http://statistics.data.gov.uk/id/local-authority/30UE,Parking Services,1066,Streetscene & Leisure Contracts,External Contractors,50008,Private Contractors,5042,Provision of Notice Processing services as agreed in Lancashire contract. 320 PCNs per month @ 2.90 per ticket. ,05/06/2015,103802,809.20,Revenue,Chipside Ltd,22063
Chorley Borough Council,http://statistics.data.gov.uk/id/local-authority/30UE,Economic Development,1096,Economic Development,Grants To Other Organisations,40127,Grants and Subscriptions,5031,Large Core Funding Contract,24/06/2015,104180,"15,000.00",Revenue,Chorley & South Ribble Shopmobility,18403
Chorley Borough Council,http://statistics.data.gov.uk/id/local-authority/30UE,Corporate Management,1008,Health Environment & Neighbourhoods,Taxi Testing & Vehicle Safety Report,40234,Services,5027,MOT,03/06/2015,103775,987.30,Revenue,Chorley Autocare Ltd,17110
Chorley Borough Council,http://statistics.data.gov.uk/id/local-authority/30UE,Corporate Management,1008,Health Environment & Neighbourhoods,Taxi Testing & Vehicle Safety Report,40234,Services,5027,Taxi Test,03/06/2015,103775,153.90,Revenue,Chorley Autocare Ltd,17110
Chorley Borough Council,http://statistics.data.gov.uk/id/local-authority/30UE,Elections,1012,Governance,Rent/Hire Of Premises,20017,Premises Rents,5007,hire of room for polling station 7 May 2015,17/06/2015,104123,335.00,Revenue,Chorley Methodist Church,18422
Chorley Borough Council,http://statistics.data.gov.uk/id/local-authority/30UE,Democratic Represent and  Mgnt,1007,Governance,Processional Routes,40177,Miscellaneous Expenses,5034,Band at Civic Sunday,10/06/2015,103937,400.00,Revenue,Chorley Pipe Band,21576
Chorley Borough Council,http://statistics.data.gov.uk/id/local-authority/30UE,Community Development,1097,Policy & Performance,Core Funding Grants,40133,Grants and Subscriptions,5031,Provision for the delivery of advice services - Year 2 1st instalment April to Sept 2015,05/06/2015,103816,"28,400.00",Revenue,Chorley Sth Ribble & Dist Citizen Advice Bureaux,17035
Chorley Borough Council,http://statistics.data.gov.uk/id/local-authority/30UE,Unapportionable Central OHeads,1009,Governance,Asset Maintenance Fund,20012,Repairs Maintenance & Alts,5005,"supply & fit x6 vertical blinds in BO Cream to Property Services Office, Town Hall, Chorley as per email ",10/06/2015,104009,425.00,Revenue,Chorley Window Blinds,54011
Chorley Borough Council,http://statistics.data.gov.uk/id/local-authority/30UE,Community Development,1097,Policy & Performance,Core Funding Grants,40133,Grants and Subscriptions,5031,Provision for the delivery of a service to support vulnerable adults (women) 1 April 2015 - 30 September 2015,05/06/2015,103815,"7,497.75",Revenue,Chorley Womens Centre,17036
Chorley Borough Council,http://statistics.data.gov.uk/id/local-authority/30UE,Service Management & Support,1009,Streetscene & Leisure Contracts,Grounds Maintenance Contractor,20043,Grounds Maintenance Costs,5013,Fell & Remove Mature Beech Tree ADDRESS REDACTED,17/06/2015,104073,"1,950.00",Revenue,Cornthwaite Tree Care,21250
Chorley Borough Council,http://statistics.data.gov.uk/id/local-authority/30UE,Business Support,1095,Policy & Performance,Research & Feasibilities,40079,Services,5027,transport engineering services relating to the Market Walk Extension project,24/06/2015,104177,"2,290.00",Revenue,Curtins Consulting Engineers,20049
Chorley Borough Council,http://statistics.data.gov.uk/id/local-authority/30UE,Service Management & Support,1009,Streetscene & Leisure Contracts,Hire Of Transport,30028,Contrct Hire & Operating Lease,5018,Hire of Ford Transit tipper for 12 week period as per Email ,10/06/2015,103725,398.57,Revenue,Dawson Rental Sweepers,22011
Chorley Borough Council,http://statistics.data.gov.uk/id/local-authority/30UE,Business Support,1095,Economic Development,Miscellaneous Expenses,40200,Miscellaneous Expenses,5034,Starting in Business Grant,12/06/2015,103911,250.00,Revenue,NAME REDACTED,70474
Chorley Borough Council,http://statistics.data.gov.uk/id/local-authority/30UE,Business Support,1095,Economic Development,Miscellaneous Expenses,40200,Miscellaneous Expenses,5034,Sgtarting in business grant,12/06/2015,103985,250.00,Revenue,NAME REDACTED,70492
Chorley Borough Council,http://statistics.data.gov.uk/id/local-authority/30UE,Central Support Services,1009,Governance,Consultants` Fees,40077,Services,5027,"Valuation for Financial Statements at Market Walk Shopping Centre, Chorley.",05/06/2015,103757,"6,000.00",Revenue,Deloitte LLP,58651
Chorley Borough Council,http://statistics.data.gov.uk/id/local-authority/30UE,Collection Fund Revenue Accoun,,Shared Service Arrangement,NNDR Central Share,2034,Precepts & Collection Fund,Precept,brr cfr cs,10/06/2015,103577,"1,808,910.00",Revenue,Department of Communities and Local Government,16280
Chorley Borough Council,http://statistics.data.gov.uk/id/local-authority/30UE,Collection Fund Revenue Accoun,,Shared Service Arrangement,NNDR Central Share,2034,Precepts & Collection Fund,Precept,Collection Fund NNDR,10/06/2015,103707,"1,277,136.00",Revenue,Department of Communities and Local Government,16280
Chorley Borough Council,http://statistics.data.gov.uk/id/local-authority/30UE,Collection Fund Revenue Accoun,,Shared Service Arrangement,NNDR Central Share,2034,Precepts & Collection Fund,Precept,collection fund,10/06/2015,103707,"-49,736.00",Revenue,Department of Communities and Local Government,16280
Chorley Borough Council,http://statistics.data.gov.uk/id/local-authority/30UE,Collection Fund Revenue Accoun,,Shared Service Arrangement,NNDR Central Share,2034,Precepts & Collection Fund,Precept,collection fund,10/06/2015,103707,"9,475.00",Revenue,Department of Communities and Local Government,16280
Chorley Borough Council,http://statistics.data.gov.uk/id/local-authority/30UE,Non Domestic Rates Redistribut,,Shared Service Arrangement,Tariff to Central Government,49000,Expenditure not in NCOS,,retiained,10/06/2015,103707,"701,256.00",Revenue,Department of Communities and Local Government,16280
Chorley Borough Council,http://statistics.data.gov.uk/id/local-authority/30UE,Elections,1012,Governance,Election Fees,40080,Services,5027,Forwarding of forfeited deposits for the UK Parliamentary Election - Chorley Constituency,24/06/2015,104261,"1,500.00",Revenue,Department of Communities and Local Government,19439
Chorley Borough Council,http://statistics.data.gov.uk/id/local-authority/30UE,Central Support Services,1009,"Customer, ICT & Transactional",Computer Software-Maintenance,40107,Communication and Computing,5028,"ProPrint Annual Licence and Maintenance 1 April 2015 to 31 March 20161 x ProPrint Class B Licence (2,226.00)0)",05/06/2015,103784,"3,283.00",Revenue,Document Output Solutions UK Ltd,21304
Chorley Borough Council,http://statistics.data.gov.uk/id/local-authority/30UE,Unapportionable Central OHeads,1009,Governance,Postages,40082,Communication and Computing,5028,Subscription renewal for the DX Exchange Service from 01.05.15 to 31.04.16,03/06/2015,103776,250.00,Revenue,DX Network Services Ltd,17551
Chorley Borough Council,http://statistics.data.gov.uk/id/local-authority/30UE,Central Support Services,1009,"Customer, ICT & Transactional",Mobile Phones,40086,Communication and Computing,5028,Charges for account 16440033,10/06/2015,103954,774.50,Revenue,EE - Orange,16486
Chorley Borough Council,http://statistics.data.gov.uk/id/local-authority/30UE,Central Support Services,1009,"Customer, ICT & Transactional",Mobile Phones,40086,Communication and Computing,5028,Non-VAT Charges,10/06/2015,103954,3.00,Revenue,EE - Orange,16486
Chorley Borough Council,http://statistics.data.gov.uk/id/local-authority/30UE,Unapportionable Central OHeads,1009,"Customer, ICT & Transactional",Mobile Phones,40086,Communication and Computing,5028,"1gb data bundle on 4g network - 2 year contract. SIMs only. 70 users x 2.50 per month x 2 years = 4,200. ",05/06/2015,103550,185.00,Revenue,EE LIMITED,63366
Chorley Borough Council,http://statistics.data.gov.uk/id/local-authority/30UE,Unapportionable Central OHeads,1009,"Customer, ICT & Transactional",Mobile Phones,40086,Communication and Computing,5028,"1gb data bundle on 4g network - 2 year contract. SIMs only. 30 users x 2.50 per month x 2 years = 1,800. ",05/06/2015,103550,75.38,Revenue,EE LIMITED,63366
Chorley Borough Council,http://statistics.data.gov.uk/id/local-authority/30UE,Central Support Services,1009,"Customer, ICT & Transactional",Mobile Phones,40086,Communication and Computing,5028,"1gb data bundle on 4g network - 2 year contract. SIMs only. 30 users x 2.50 per month x 2 years = 1,800.",05/06/2015,103550,76.00,Revenue,EE LIMITED,63366
Chorley Borough Council,http://statistics.data.gov.uk/id/local-authority/30UE,Central Support Services,1009,"Customer, ICT & Transactional",Mobile Phones,40086,Communication and Computing,5028,"4g iPhone 5s, 16GB, space grey, unlimited calls & texts,1GB data. 15 connections at 10 per user per month for 24 month",05/06/2015,103550,160.00,Revenue,EE LIMITED,63366
Chorley Borough Council,http://statistics.data.gov.uk/id/local-authority/30UE,Central Support Services,1009,"Customer, ICT & Transactional",Mobile Phones,40086,Communication and Computing,5028,"4g iPhone 5s, 16GB, space grey, unlimited calls & texts, 1GB data.10 connections at 10 per user per month for 24 month",05/06/2015,103550,110.00,Revenue,EE LIMITED,63366
Chorley Borough Council,http://statistics.data.gov.uk/id/local-authority/30UE,Unapportionable Central OHeads,1009,"Customer, ICT & Transactional",Mobile Phones,40086,Communication and Computing,5028,"1gb data bundle on 4g network - 2 year contract. SIMs only. 70 users x 2.50 per month x 2 years = 4,200.",10/06/2015,103909,190.00,Revenue,EE LIMITED,63366
Chorley Borough Council,http://statistics.data.gov.uk/id/local-authority/30UE,Unapportionable Central OHeads,1009,"Customer, ICT & Transactional",Mobile Phones,40086,Communication and Computing,5028,"1gb data bundle on 4g network - 2 year contract. SIMs only. 30 users x 2.50 per month x 2 years = 1,800.",10/06/2015,103909,80.00,Revenue,EE LIMITED,63366
Chorley Borough Council,http://statistics.data.gov.uk/id/local-authority/30UE,Central Support Services,1009,"Customer, ICT & Transactional",Mobile Phones,40086,Communication and Computing,5028,"1gb data bundle on 4g network - 2 year contract. SIMs only. 30 users x 2.50 per month x 2 years = 1,800. ",10/06/2015,103909,81.79,Revenue,EE LIMITED,63366
Chorley Borough Council,http://statistics.data.gov.uk/id/local-authority/30UE,Central Support Services,1009,"Customer, ICT & Transactional",Mobile Phones,40086,Communication and Computing,5028,"4g iPhone 5s, 16GB, space grey, unlimited calls & texts,1GB data. 15 connections at 10 per user per month for 24 month",10/06/2015,103909,155.00,Revenue,EE LIMITED,63366
Chorley Borough Council,http://statistics.data.gov.uk/id/local-authority/30UE,Central Support Services,1009,"Customer, ICT & Transactional",Mobile Phones,40086,Communication and Computing,5028,"4g iPhone 5s, 16GB, space grey, unlimited calls & texts,1GB data. 10 connections at 10 per user per month for 24 month",10/06/2015,103909,106.00,Revenue,EE LIMITED,63366
Chorley Borough Council,http://statistics.data.gov.uk/id/local-authority/30UE,Central Support Services,1009,"Customer, ICT & Transactional",Mobile Phones,40086,Communication and Computing,5028,non VAT,10/06/2015,103909,24.00,Revenue,EE LIMITED,63366
Chorley Borough Council,http://statistics.data.gov.uk/id/local-authority/30UE,Unapportionable Central OHeads,1009,"Customer, ICT & Transactional",Mobile Phones,40086,Communication and Computing,5028,"1gb data bundle on 4g network - 2 year contract. SIMs only. 70 users x 2.50 per month x 2 years = 4,200. ",26/06/2015,104105,659.13,Revenue,EE LIMITED,63366
Chorley Borough Council,http://statistics.data.gov.uk/id/local-authority/30UE,Community Development,1097,Governance,Rent/Hire Of Premises,20017,Premises Rents,5007,"Rental for Credit Union, Market Street, Chorley from 28.06.15 to 27.09.15",26/06/2015,104282,"3,125.00",Revenue,Elmwood Property Investments Limited,60926
Chorley Borough Council,http://statistics.data.gov.uk/id/local-authority/30UE,Service Management & Support,1009,Streetscene & Leisure Contracts,Diesel/Derv,30007,Direct Transport Costs,5016,Supply 8000 litres of road diesel to be delivered to Bengal St depot,24/06/2015,104041,"7,523.76",Revenue,EmoOil Ltd,19926
Chorley Borough Council,http://statistics.data.gov.uk/id/local-authority/30UE,Capital,Capital,Streetscene & Leisure Contracts,Main Contractor,3007,Capital Expenditure,Capital,Civil engineering and landscaping works at Rangletts Recreation Ground,17/06/2015,103864,"45,520.62",Capital,English Landscapes Ltd,67982
Chorley Borough Council,http://statistics.data.gov.uk/id/local-authority/30UE,Unapportionable Central OHeads,1009,Streetscene & Leisure Contracts,Depot Licences,40236,Miscellaneous Expenses,5034,Payment for licence at Bengal St depot Chorley PR71SA for Chorley Council as per invoice number N01159386,19/06/2015,104178,"4,840.00",Revenue,Environment Agency,18256
Chorley Borough Council,http://statistics.data.gov.uk/id/local-authority/30UE,Democratic Represent and  Mgnt,1007,Streetscene & Leisure Contracts,Rent/Hire Of Premises,20017,Premises Rents,5007,"Duxbury Coach House 2015/16 Financial Year Rent - 10,625 per qtr To be invoiced quarterly Q1: 25/03/15 - 24/06/15  ",24/06/2015,104268,"10,625.00",Revenue,European Settled Estates Plc,16495
Chorley Borough Council,http://statistics.data.gov.uk/id/local-authority/30UE,Democratic Represent and  Mgnt,1007,Streetscene & Leisure Contracts,Rent/Hire Of Premises,20017,Premises Rents,5007,"Service Charge - 1.125 per qtr invoiced quarterly Q1: 25/03/15 - 24/06/15    Q2: 25/06/15 - 24/09/15 Q3: 25/09/15  24/12/15",24/06/2015,104268,"1,125.00",Revenue,European Settled Estates Plc,16495
Chorley Borough Council,http://statistics.data.gov.uk/id/local-authority/30UE,Service Management & Support,1009,Streetscene & Leisure Contracts,Supplies-Grounds Maintenance,40025,"Equipment, Furniture & Materia",5023,Plants for Tatton Rec.. 15nr Berberis Darwinii 5L; 30nr Lavandula 2L; 30nr Geum  (orange flower)  2L and 3nr Pyracantha 5L,10/06/2015,103790,250.50,Revenue,Everglades Nurseries Ltd,20202
Chorley Borough Council,http://statistics.data.gov.uk/id/local-authority/30UE,Service Management & Support,1009,Streetscene & Leisure Contracts,Tools & Equipment - Maintenance,40005,"Equipment, Furniture & Materia",5023,Supply items as on Pro-Forma No 103701 for Chorley Council as per Email,17/06/2015,104125,"1,293.51",Revenue,F R Sharrock Ltd,18091
Chorley Borough Council,http://statistics.data.gov.uk/id/local-authority/30UE,Unapportionable Central OHeads,1009,Governance,General Repairs - Reactive,20004,Repairs Maintenance & Alts,5005,"Paving works at Market Walk, Chorley.",12/06/2015,103871,559.00,Revenue,First Choice Cleaning Services,70379
Chorley Borough Council,http://statistics.data.gov.uk/id/local-authority/30UE,Unapportionable Central OHeads,1009,Policy & Performance,Exhibitions & Special Events,40158,Miscellaneous Expenses,5034,Mobile farm including animals and hand wash facilities for Animals in the Park 2015 10am-4pm,19/06/2015,104181,"1,250.00",Revenue,Fishers Mobile Farm,59761
Chorley Borough Council,http://statistics.data.gov.uk/id/local-authority/30UE,Service Management & Support,1009,Streetscene & Leisure Contracts,Freight Transport Assoc Fees,40150,Grants and Subscriptions,5031,Carryout 6 weekly safety inspection on DK07LDE for Olicence compliance,12/06/2015,104018,117.63,Revenue,Freight Transport Assoc Ltd,16333
Chorley Borough Council,http://statistics.data.gov.uk/id/local-authority/30UE,Service Management & Support,1009,Streetscene & Leisure Contracts,Freight Transport Assoc Fees,40150,Grants and Subscriptions,5031,Carryout 6 weekly safety inspection on DK56JWO for Olicence compliance,12/06/2015,104018,117.63,Revenue,Freight Transport Assoc Ltd,16333
Chorley Borough Council,http://statistics.data.gov.uk/id/local-authority/30UE,Service Management & Support,1009,Streetscene & Leisure Contracts,Freight Transport Assoc Fees,40150,Grants and Subscriptions,5031,Carryout 6 weekly safety inspection on DX55CVG for Olicence compliance,12/06/2015,104018,116.63,Revenue,Freight Transport Assoc Ltd,16333
Chorley Borough Council,http://statistics.data.gov.uk/id/local-authority/30UE,Service Management & Support,1009,Streetscene & Leisure Contracts,Freight Transport Assoc Fees,40150,Grants and Subscriptions,5031,Carryout 6 weekly safety inspection on DK05CXG for Olicence compliance,12/06/2015,104018,117.63,Revenue,Freight Transport Assoc Ltd,16333
Chorley Borough Council,http://statistics.data.gov.uk/id/local-authority/30UE,Service Management & Support,1009,Streetscene & Leisure Contracts,Freight Transport Assoc Fees,40150,Grants and Subscriptions,5031,Carryout 6 weekly safety inspection on PN02HRL for Olicence compliance,12/06/2015,104018,117.63,Revenue,Freight Transport Assoc Ltd,16333
Chorley Borough Council,http://statistics.data.gov.uk/id/local-authority/30UE,Service Management & Support,1009,Streetscene & Leisure Contracts,Freight Transport Assoc Fees,40150,Grants and Subscriptions,5031,Carryout 6 weekly safety inspection on DK56JWL for Olicence compliance,12/06/2015,104018,118.63,Revenue,Freight Transport Assoc Ltd,16333
Chorley Borough Council,http://statistics.data.gov.uk/id/local-authority/30UE,Democratic Represent and  Mgnt,1007,Streetscene & Leisure Contracts,Security Service,40062,Services,5027,All Seasons,10/06/2015,103984,142.96,Revenue,G4S Cash Solutions UK Ltd,22099
Chorley Borough Council,http://statistics.data.gov.uk/id/local-authority/30UE,Democratic Represent and  Mgnt,1007,Streetscene & Leisure Contracts,Security Service,40062,Services,5027,Brinscall Swimming Baths,10/06/2015,103984,55.97,Revenue,G4S Cash Solutions UK Ltd,22099
Chorley Borough Council,http://statistics.data.gov.uk/id/local-authority/30UE,Unapportionable Central OHeads,1009,Streetscene & Leisure Contracts,Security Service,40062,Services,5027,Civic Offices,10/06/2015,103984,55.97,Revenue,G4S Cash Solutions UK Ltd,22099
Chorley Borough Council,http://statistics.data.gov.uk/id/local-authority/30UE,Democratic Represent and  Mgnt,1007,Streetscene & Leisure Contracts,Security Service,40062,Services,5027,Clayton Green Sports Centre,10/06/2015,103984,55.97,Revenue,G4S Cash Solutions UK Ltd,22099
Chorley Borough Council,http://statistics.data.gov.uk/id/local-authority/30UE,Homelessness,1075,Streetscene & Leisure Contracts,Security Service,40062,Services,5027,Cotswold House,10/06/2015,103984,27.97,Revenue,G4S Cash Solutions UK Ltd,22099
Chorley Borough Council,http://statistics.data.gov.uk/id/local-authority/30UE,Democratic Represent and  Mgnt,1007,Governance,Mayoral Hospitality,40123,Expenses,5030,Deposit for booking of James Franklyn and the Soul Machine plus DJ service for the Mayor`s Charity Ball on Friday 5th Feb,24/06/2015,104259,252.00,Revenue,Garston Entertainments Ltd,70701
Chorley Borough Council,http://statistics.data.gov.uk/id/local-authority/30UE,Service Management & Support,1009,Streetscene & Leisure Contracts,Vehicle Maintenance,30045,Direct Transport Costs,5016,Carryout 500 hr service as required for warranty on PO14BFX Kubota tractor,10/06/2015,103820,272.44,Revenue,Gibsons Garden Machinery Ltd,17550
Chorley Borough Council,http://statistics.data.gov.uk/id/local-authority/30UE,Service Management & Support,1009,Streetscene & Leisure Contracts,Vehicle Maintenance,30045,Direct Transport Costs,5016,Credit Charge,10/06/2015,103820,6.81,Revenue,Gibsons Garden Machinery Ltd,17550
Chorley Borough Council,http://statistics.data.gov.uk/id/local-authority/30UE,Central Support Services,1009,Health Environment & Neighbourhoods,External Contractor,40198,Miscellaneous Expenses,5034,Reactive & proactive graffiti removal,03/06/2015,103730,"1,246.87",Revenue,Graffiti Removal (North) Ltd,17320
Chorley Borough Council,http://statistics.data.gov.uk/id/local-authority/30UE,Central Support Services,1009,Health Environment & Neighbourhoods,External Contractor,40198,Miscellaneous Expenses,5034,Reactive & proactive graffiti removal,10/06/2015,103749,"1,246.87",Revenue,Graffiti Removal (North) Ltd,17320
Chorley Borough Council,http://statistics.data.gov.uk/id/local-authority/30UE,Unapportionable Central OHeads,1009,Shared Service Arrangement,Consultants` Fees,40077,Services,5027,Coaching support on 10th April and 19th May 2015 plus editing of report to Chief Executives,17/06/2015,104085,"1,306.25",Revenue,Greengage Consulting Ltd,17365
Chorley Borough Council,http://statistics.data.gov.uk/id/local-authority/30UE,Unapportionable Central OHeads,1009,Shared Service Arrangement,Consultants` Fees,40077,Services,5027,Expenses,17/06/2015,104085,106.20,Revenue,Greengage Consulting Ltd,17365
Chorley Borough Council,http://statistics.data.gov.uk/id/local-authority/30UE,Corporate Management,1008,Shared Service Arrangement,HM Land Registry Fees,40174,Miscellaneous Expenses,5034,land reg,10/06/2015,103584,12.00,Revenue,H M Land Registry,17567
Chorley Borough Council,http://statistics.data.gov.uk/id/local-authority/30UE,Housing Strategy,1069,Shared Service Arrangement,HM Land Registry Fees,40174,Miscellaneous Expenses,5034,land reg,10/06/2015,103584,6.00,Revenue,H M Land Registry,17567
Chorley Borough Council,http://statistics.data.gov.uk/id/local-authority/30UE,Unapportionable Central OHeads,1009,Shared Service Arrangement,HM Land Registry Fees,40174,Miscellaneous Expenses,5034,land reg,10/06/2015,103584,338.00,Revenue,H M Land Registry,17567
Chorley Borough Council,http://statistics.data.gov.uk/id/local-authority/30UE,Unapportionable Central OHeads,1009,Shared Service Arrangement,HM Land Registry Fees,40174,Miscellaneous Expenses,5034,land reg,10/06/2015,103584,30.00,Revenue,H M Land Registry,17567
Chorley Borough Council,http://statistics.data.gov.uk/id/local-authority/30UE,Development Control,1091,Shared Service Arrangement,HM Land Registry Fees,40174,Miscellaneous Expenses,5034,land reg,10/06/2015,103584,217.00,Revenue,H M Land Registry,17567
Chorley Borough Council,http://statistics.data.gov.uk/id/local-authority/30UE,Corporate Management,1008,Shared Service Arrangement,HM Land Registry Fees,40174,Miscellaneous Expenses,5034,land reg,10/06/2015,103584,18.00,Revenue,H M Land Registry,17567
Chorley Borough Council,http://statistics.data.gov.uk/id/local-authority/30UE,Unapportionable Central OHeads,1009,Shared Service Arrangement,Computer Software-Maintenance,40107,Communication and Computing,5028,Cheqflow Maintenance Support Licence,24/06/2015,104265,600.00,Revenue,Hague Computer Supplies Ltd,56014
Chorley Borough Council,http://statistics.data.gov.uk/id/local-authority/30UE,Economic Development,1096,Economic Development,Publicity - Advertising,40157,Miscellaneous Expenses,5034,x150 Heavy Duty PVC Bunting Red / White / Blue 12`` x 8`` 10m Lengths ,05/06/2015,103758,558.75,Revenue,Hampshire Flag Company,22296
Chorley Borough Council,http://statistics.data.gov.uk/id/local-authority/30UE,Economic Development,1096,Economic Development,Publicity - Advertising,40157,Miscellaneous Expenses,5034,Delivery PALLETWAYS Packaging & Courier Delivery service ( Signature Required ) Packing + Pallet + Delivery,05/06/2015,103758,55.00,Revenue,Hampshire Flag Company,22296
Chorley Borough Council,http://statistics.data.gov.uk/id/local-authority/30UE,Economic Development,1096,Economic Development,Publicity - Advertising,40157,Miscellaneous Expenses,5034,x150 Heavy Duty PVC Bunting Red / White / Blue 12`` x 8`` 10m Lengths,10/06/2015,103848,558.75,Revenue,Hampshire Flag Company,22296
Chorley Borough Council,http://statistics.data.gov.uk/id/local-authority/30UE,Economic Development,1096,Economic Development,Publicity - Advertising,40157,Miscellaneous Expenses,5034,Delivery PALLETWAYS Packaging & Courier Delivery Service ( Signature Required ) Packing + Pallet + Delivery ,10/06/2015,103848,55.00,Revenue,Hampshire Flag Company,22296
Chorley Borough Council,http://statistics.data.gov.uk/id/local-authority/30UE,Economic Development,1096,Economic Development,Publicity - Advertising,40157,Miscellaneous Expenses,5034,Please provide the following as per quotation no: x 35 FLAGPOLESWALLB45 45 Degree Angled Wall Mounted Bracket,10/06/2015,103936,"1,011.50",Revenue,Hampshire Flag Company,22296
Chorley Borough Council,http://statistics.data.gov.uk/id/local-authority/30UE,Economic Development,1096,Economic Development,Publicity - Advertising,40157,Miscellaneous Expenses,5034,x30 DIGITALLY PRINTED TEXTILE - DPKNI01 - ROPE & TOGGLE File Name: Union Flag Material: Knitted Polyester ,10/06/2015,103936,558.95,Revenue,Hampshire Flag Company,22296
Chorley Borough Council,http://statistics.data.gov.uk/id/local-authority/30UE,Service Management & Support,1009,Streetscene & Leisure Contracts,Supplies-Grounds Maintenance,40025,"Equipment, Furniture & Materia",5023,Supply watering lances to be collected 1.6m to 2.8m,17/06/2015,104126,285.00,Revenue,Henry Alty Limited,22048
Chorley Borough Council,http://statistics.data.gov.uk/id/local-authority/30UE,Unapportionable Central OHeads,1009,Governance,General Repairs - Reactive,20004,Repairs Maintenance & Alts,5005,Reactive blanket order until September 2015.,03/06/2015,103488,425.00,Revenue,Henry Nightingale & Son,17923
Chorley Borough Council,http://statistics.data.gov.uk/id/local-authority/30UE,Capital,Capital,Governance,Main Contractor,3007,Capital Expenditure,Capital,Redecoration of the Town Hall as per our instruction ORDER6314.,26/06/2015,104241,"2,279.00",Capital,Henry Nightingale & Son,17923
Chorley Borough Council,http://statistics.data.gov.uk/id/local-authority/30UE,Community Development,1097,Policy & Performance,Core Funding Grants,40133,Grants and Subscriptions,5031,Provision for the delivery of a Family Support Service,24/06/2015,104224,"11,000.00",Revenue,Home-Start,20585
Chorley Borough Council,http://statistics.data.gov.uk/id/local-authority/30UE,Business Support,1095,Governance,Fire Alarms,20072,Fixtures and Fittings,5010,Service of Fire Alarm system at Gill St Main building - quarterly service intervals Jan 2015-Dec2015,24/06/2015,103913,458.91,Revenue,Honeywell - Novar Systems Ltd,16689
Chorley Borough Council,http://statistics.data.gov.uk/id/local-authority/30UE,Business Support,1095,Policy & Performance,Research & Feasibilities,40079,Services,5027,Undertaking the BREEAM Pre-Assessment for Market Walk,05/06/2015,103817,"2,000.00",Revenue,Hulley and Kirkwood Consulting Engineers Ltd,69390
Chorley Borough Council,http://statistics.data.gov.uk/id/local-authority/30UE,Business Support,1095,Policy & Performance,Research & Feasibilities,40079,Services,5027,Market Walk Extension - Professional Fees: Engineering Services,24/06/2015,104231,"3,625.01",Revenue,Hulley and Kirkwood Consulting Engineers Ltd,69390
Chorley Borough Council,http://statistics.data.gov.uk/id/local-authority/30UE,Economic Development,1096,Shared Service Arrangement,Car Leasing Payment,14100,Direct Employee Expenses,5001,Employee Expenses,10/06/2015,103739,"3,926.26",Revenue,Inchcape Fleet Solutions Ltd,52543
Chorley Borough Council,http://statistics.data.gov.uk/id/local-authority/30UE,Economic Development,1096,Shared Service Arrangement,Car Leasing Payment,14100,Direct Employee Expenses,5001,Employee Expenses,10/06/2015,103739,330.99,Revenue,Inchcape Fleet Solutions Ltd,52543
Chorley Borough Council,http://statistics.data.gov.uk/id/local-authority/30UE,Unapportionable Central OHeads,1009,HR & Org. Development,HR Approved Training Expenses,17001,Indirect Employee Expenses,5002,Advanced Investigation Skills Training - 21 May 2015,12/06/2015,104015,"2,399.40",Revenue,In-Company Training Services Ltd,70491
Chorley Borough Council,http://statistics.data.gov.uk/id/local-authority/30UE,Central Support Services,1009,"Customer, ICT & Transactional",Computer Equipment-Maintenance,40105,Communication and Computing,5028,"Stack-Interconnect Extricom Support Plan incorporating Agile-Plus Telephone/email support, Advanced Replacement ",26/06/2015,104273,"1,800.00",Revenue,Interconnect Network Systems,21292
Chorley Borough Council,http://statistics.data.gov.uk/id/local-authority/30UE,Community Development,1097,Governance,Premises Related Insurances,20068,Premises Related Insurance,5014,35/37 market street,17/06/2015,104093,"7,218.75",Revenue,J R Keys,17124
Chorley Borough Council,http://statistics.data.gov.uk/id/local-authority/30UE,Unapportionable Central OHeads,1009,Governance,Planned Maintenance,20006,Repairs Maintenance & Alts,5005,PPM blanket order until September 2015.,03/06/2015,103565,828.00,Revenue,James Mercer,20194
Chorley Borough Council,http://statistics.data.gov.uk/id/local-authority/30UE,Unapportionable Central OHeads,1009,Governance,General Repairs - Reactive,20004,Repairs Maintenance & Alts,5005,Reactive blanket order until September 2015.,26/06/2015,104201,307.00,Revenue,James Mercer,20194
Chorley Borough Council,http://statistics.data.gov.uk/id/local-authority/30UE,Service Management & Support,1009,Streetscene & Leisure Contracts,Supplies-Grounds Maintenance,40025,"Equipment, Furniture & Materia",5023,Street Name Plate post galvanized (1200mm x 76mm).  Product Code = SpeCH009,05/06/2015,103800,875.50,Revenue,Jewsons Limited,17844
Chorley Borough Council,http://statistics.data.gov.uk/id/local-authority/30UE,Democratic Represent and  Mgnt,1007,Streetscene & Leisure Contracts,General Repairs - Reactive,20004,Repairs Maintenance & Alts,5005,Quote no C-002344.  20nr  1.830 x 1.5 treated pointed top picket panels and 21 nr 2.4 x 0.1 pointed base posts.  ,10/06/2015,103886,475.59,Revenue,John H Mayor & Sons Ltd,16635
Chorley Borough Council,http://statistics.data.gov.uk/id/local-authority/30UE,Service Management & Support,1009,Streetscene & Leisure Contracts,Supplies-Grounds Maintenance,40025,"Equipment, Furniture & Materia",5023,20 @ 3m x 75mm x 75mm Rough sawn timber,10/06/2015,103887,94.60,Revenue,John H Mayor & Sons Ltd,16635
Chorley Borough Council,http://statistics.data.gov.uk/id/local-authority/30UE,Service Management & Support,1009,Streetscene & Leisure Contracts,Supplies-Grounds Maintenance,40025,"Equipment, Furniture & Materia",5023,40 @ 3.6m x 75mm x 25 mm rough sawn timber,10/06/2015,103887,66.40,Revenue,John H Mayor & Sons Ltd,16635
Chorley Borough Council,http://statistics.data.gov.uk/id/local-authority/30UE,Service Management & Support,1009,Streetscene & Leisure Contracts,Supplies-Grounds Maintenance,40025,"Equipment, Furniture & Materia",5023,3 @ 200mm x 200mm weathered top gate post,10/06/2015,103887,127.50,Revenue,John H Mayor & Sons Ltd,16635
Chorley Borough Council,http://statistics.data.gov.uk/id/local-authority/30UE,Service Management & Support,1009,Policy & Performance,Miscellaneous Expenses,40200,Miscellaneous Expenses,5034,"Staging and PA systems for Chorley Flower Show, plus additional acts and other support",26/06/2015,104295,"5,120.00",Revenue,John Mayoh Events Ltd,70694
Chorley Borough Council,http://statistics.data.gov.uk/id/local-authority/30UE,Development Control,1091,Planning,Statutory Notices,40160,Miscellaneous Expenses,5034,Planning Public Notices to appear in the Chorley Guardian April 2015 to March 2016,12/06/2015,103819,444.96,Revenue,Johnston Publishing Ltd,20072
Chorley Borough Council,http://statistics.data.gov.uk/id/local-authority/30UE,Development Control,1091,Planning,Statutory Notices,40160,Miscellaneous Expenses,5034,Planning Public Notices to appear in the Chorley Guardian April 2015 to March 2016,12/06/2015,104039,494.40,Revenue,Johnston Publishing Ltd,20072
Chorley Borough Council,http://statistics.data.gov.uk/id/local-authority/30UE,Development Control,1091,Planning,Statutory Notices,40160,Miscellaneous Expenses,5034,Planning Public Notices to appear in the Chorley Guardian April 2015 to March 2016,26/06/2015,104298,527.36,Revenue,Johnston Publishing Ltd,20072
Chorley Borough Council,http://statistics.data.gov.uk/id/local-authority/30UE,Capital,Capital,Streetscene & Leisure Contracts,Main Contractor,3007,Capital Expenditure,Capital,Robinia Parkour 2 NR0852-1001 and delivery to Bengal Street Depot.,17/06/2015,104066,"3,793.21",Capital,JSC Play Services Ltd,56726
Chorley Borough Council,http://statistics.data.gov.uk/id/local-authority/30UE,Central Support Services,1009,"Customer, ICT & Transactional",Computer Equipment-Purchase,40098,Communication and Computing,5028,APPLE 12W USB POWER ADAPTER (product code MD836B/B),19/06/2015,104112,151.95,Revenue,Kelway UK Ltd,60681
Chorley Borough Council,http://statistics.data.gov.uk/id/local-authority/30UE,Central Support Services,1009,"Customer, ICT & Transactional",Computer Equipment-Purchase,40098,Communication and Computing,5028,APPLE LIGHTNING TO USB CABLE 0.5M (product code ME291ZM/A),19/06/2015,104112,151.95,Revenue,Kelway UK Ltd,60681
Chorley Borough Council,http://statistics.data.gov.uk/id/local-authority/30UE,Unapportionable Central OHeads,1009,HR & Org. Development,Leadership Development Programme,17008,Indirect Employee Expenses,5002,Strengths Finder Team Workshop plus travel expenses on 15 May 2015,05/06/2015,103870,772.95,Revenue,Kingfisher Coaching Limited,70305
Chorley Borough Council,http://statistics.data.gov.uk/id/local-authority/30UE,Control Accounts,Control,Shared Service Arrangement,General Balances,100,Balance Sheet,Balance,may DEDS,03/06/2015,103711,"1,181.74",Revenue,Labour Councillors Association,17577
Chorley Borough Council,http://statistics.data.gov.uk/id/local-authority/30UE,Control Accounts,Control,Shared Service Arrangement,General Balances,100,Balance Sheet,Balance,sals deds,19/06/2015,104162,"1,096.60",Revenue,Labour Councillors Association,17577
Chorley Borough Council,http://statistics.data.gov.uk/id/local-authority/30UE,Capital,Capital,Housing,Grants,3002,Capital Expenditure,Capital,INV5100278371 Ellison 104 Brown Street,03/06/2015,103572,798.00,Capital,Lancashire County Council,17758
Chorley Borough Council,http://statistics.data.gov.uk/id/local-authority/30UE,Collection Fund Revenue Accoun,,Shared Service Arrangement,NNDR County Share,2036,Precepts & Collection Fund,Precept,precept may,10/06/2015,103580,"247,375.00",Revenue,Lancashire County Council,18386
Chorley Borough Council,http://statistics.data.gov.uk/id/local-authority/30UE,Precepts and Collection Fund,Precepts,Shared Service Arrangement,LCC Precept,2009,Precepts & Collection Fund,Precept,precept may,10/06/2015,103581,"3,975,062.00",Revenue,Lancashire County Council,18386
Chorley Borough Council,http://statistics.data.gov.uk/id/local-authority/30UE,Unapportionable Central OHeads,1009,Shared Service Arrangement,Pensions Increase Act Payments,18005,Indirect Employee Expenses,5002,apr recharge,10/06/2015,103585,"18,660.76",Revenue,Lancashire County Council,18386
Chorley Borough Council,http://statistics.data.gov.uk/id/local-authority/30UE,Capital,Capital,Housing,Grants,3002,Capital Expenditure,Capital,INV 5100284284 ADDRESS REDACTED,12/06/2015,104059,"4,875.00",Capital,Lancashire County Council,17758
Chorley Borough Council,http://statistics.data.gov.uk/id/local-authority/30UE,Capital,Capital,Housing,Grants,3002,Capital Expenditure,Capital,INV5100284283 ADDRESS REDACTED,12/06/2015,104060,"4,729.00",Capital,Lancashire County Council,17758
Chorley Borough Council,http://statistics.data.gov.uk/id/local-authority/30UE,Central Support Services,1009,"Customer, ICT & Transactional",Other Fees,40212,Miscellaneous Expenses,5034,Charges for the GIS Services Contract between Lancashire County Council and Chorley Council (run by BT Lancashire) ,17/06/2015,104119,"7,897.00",Revenue,Lancashire County Council,17758
Chorley Borough Council,http://statistics.data.gov.uk/id/local-authority/30UE,Capital,Capital,Housing,Grants,3002,Capital Expenditure,Capital,ADDRESS REDACTED,24/06/2015,104254,"2,437.00",Capital,Lancashire County Council,17758
Chorley Borough Council,http://statistics.data.gov.uk/id/local-authority/30UE,Corporate Management,1008,Policy & Performance,Other Fees,40212,Miscellaneous Expenses,5034,Subsidy for delivery of Meals on Wheels Service for 4 weeks to 17 May 2015,10/06/2015,103747,693.73,Revenue,Lancashire Fayre,62967
Chorley Borough Council,http://statistics.data.gov.uk/id/local-authority/30UE,Corporate Management,1008,Policy & Performance,Other Fees,40212,Miscellaneous Expenses,5034,Subsidy for Meals on Wheels - 4 weeks to 14 June 2015,24/06/2015,104218,694.66,Revenue,Lancashire Fayre,62967
Chorley Borough Council,http://statistics.data.gov.uk/id/local-authority/30UE,Unapportionable Central OHeads,1009,Shared Service Arrangement,Pensions Deficit Recovery Contributions,12003,Direct Employee Expenses,5001,ees April 2015,10/06/2015,102666,"41,640.91",Revenue,Lancashire Pensions Services,16696
Chorley Borough Council,http://statistics.data.gov.uk/id/local-authority/30UE,Unapportionable Central OHeads,1009,Shared Service Arrangement,Pensions Deficit Recovery Contributions,12003,Direct Employee Expenses,5001,ers April,10/06/2015,102667,"69,980.37",Revenue,Lancashire Pensions Services,16696
Chorley Borough Council,http://statistics.data.gov.uk/id/local-authority/30UE,Unapportionable Central OHeads,1009,Shared Service Arrangement,Pensions Deficit Recovery Contributions,12003,Direct Employee Expenses,5001,deficit apr,10/06/2015,103614,"69,325.00",Revenue,Lancashire Pensions Services,16696
Chorley Borough Council,http://statistics.data.gov.uk/id/local-authority/30UE,Democratic Represent and  Mgnt,1007,Streetscene & Leisure Contracts,External Contractor,40198,Miscellaneous Expenses,5034,"3 days work at Windsor Allotments, Chorley",17/06/2015,103932,300.00,Revenue,Lancashire Probation Service,69630
Chorley Borough Council,http://statistics.data.gov.uk/id/local-authority/30UE,Collection Fund Revenue Accoun,,Shared Service Arrangement,NNDR Fire Share,2037,Precepts & Collection Fund,Precept,precept may,10/06/2015,103578,"27,486.00",Revenue,Lancs Combined Fire Authority,17768
Chorley Borough Council,http://statistics.data.gov.uk/id/local-authority/30UE,Precepts and Collection Fund,Precepts,Shared Service Arrangement,LCFA Precept,2011,Precepts & Collection Fund,Precept,precept may,10/06/2015,103579,"228,207.00",Revenue,Lancs Combined Fire Authority,17768
Chorley Borough Council,http://statistics.data.gov.uk/id/local-authority/30UE,Unapportionable Central OHeads,1009,Chief Executives Office,Stationery,40050,"Printing, Stationery & General",5026,Lyreco Screen Wipes - 100 Wipes,24/06/2015,104174,4.50,Revenue,Lyreco UK Ltd,17623
Chorley Borough Council,http://statistics.data.gov.uk/id/local-authority/30UE,Unapportionable Central OHeads,1009,Chief Executives Office,Stationery,40050,"Printing, Stationery & General",5026,Impega Phone Cleaning Wipes Sachets - Pack Of 50,24/06/2015,104174,5.85,Revenue,Lyreco UK Ltd,17623
Chorley Borough Council,http://statistics.data.gov.uk/id/local-authority/30UE,Unapportionable Central OHeads,1009,Chief Executives Office,Stationery,40050,"Printing, Stationery & General",5026,Pencils,24/06/2015,104174,3.29,Revenue,Lyreco UK Ltd,17623
Chorley Borough Council,http://statistics.data.gov.uk/id/local-authority/30UE,Unapportionable Central OHeads,1009,Chief Executives Office,Stationery,40050,"Printing, Stationery & General",5026,Lyreco Plain Yellow Sticky Notes 50 X 40Mm - Pack Of 12 Pads,24/06/2015,104174,0.24,Revenue,Lyreco UK Ltd,17623
Chorley Borough Council,http://statistics.data.gov.uk/id/local-authority/30UE,Unapportionable Central OHeads,1009,Chief Executives Office,Stationery,40050,"Printing, Stationery & General",5026,Things to do today book,24/06/2015,104174,1.44,Revenue,Lyreco UK Ltd,17623
Chorley Borough Council,http://statistics.data.gov.uk/id/local-authority/30UE,Elections,1012,Chief Executives Office,Stationery,40050,"Printing, Stationery & General",5026,"5C5 WINDOW ENVELOPES (WHITE, SELF SEAL)",24/06/2015,104174,35.90,Revenue,Lyreco UK Ltd,17623
Chorley Borough Council,http://statistics.data.gov.uk/id/local-authority/30UE,Unapportionable Central OHeads,1009,Chief Executives Office,Stationery,40050,"Printing, Stationery & General",5026,ADHESIVE LABELS 50MM DIA - COMPANY SEAL - RED - PACK OF 8,24/06/2015,104174,17.00,Revenue,Lyreco UK Ltd,17623
Chorley Borough Council,http://statistics.data.gov.uk/id/local-authority/30UE,Elections,1012,Chief Executives Office,Stationery,40050,"Printing, Stationery & General",5026,Rubber bands,24/06/2015,104174,24.27,Revenue,Lyreco UK Ltd,17623
Chorley Borough Council,http://statistics.data.gov.uk/id/local-authority/30UE,Elections,1012,Chief Executives Office,Stationery,40050,"Printing, Stationery & General",5026,Elastic Bands - 2mm x 150mm,24/06/2015,104174,26.73,Revenue,Lyreco UK Ltd,17623
Chorley Borough Council,http://statistics.data.gov.uk/id/local-authority/30UE,Elections,1012,Chief Executives Office,Stationery,40050,"Printing, Stationery & General",5026,Lyreco Rubber Bands,24/06/2015,104174,26.73,Revenue,Lyreco UK Ltd,17623
Chorley Borough Council,http://statistics.data.gov.uk/id/local-authority/30UE,Elections,1012,Chief Executives Office,Stationery,40050,"Printing, Stationery & General",5026,Finger Cones No.00 Extra Small - Pack Of 10,24/06/2015,104174,4.77,Revenue,Lyreco UK Ltd,17623
Chorley Borough Council,http://statistics.data.gov.uk/id/local-authority/30UE,Elections,1012,Chief Executives Office,Stationery,40050,"Printing, Stationery & General",5026,Finger Cones No.0 Small - Pack Of 10,24/06/2015,104174,3.18,Revenue,Lyreco UK Ltd,17623
Chorley Borough Council,http://statistics.data.gov.uk/id/local-authority/30UE,Corporate Management,1008,Chief Executives Office,Stationery,40050,"Printing, Stationery & General",5026,SASCO UNDATED 12 MONTH MOUNTED PLANNER 914 X 610MM,24/06/2015,104174,29.27,Revenue,Lyreco UK Ltd,17623
Chorley Borough Council,http://statistics.data.gov.uk/id/local-authority/30UE,Corporate Management,1008,Chief Executives Office,Stationery,40050,"Printing, Stationery & General",5026,Verbatim CD-R 80MN 700MB Spindle of 50,24/06/2015,104174,71.38,Revenue,Lyreco UK Ltd,17623
Chorley Borough Council,http://statistics.data.gov.uk/id/local-authority/30UE,Corporate Management,1008,Chief Executives Office,Stationery,40050,"Printing, Stationery & General",5026,Slim CD Cases (Pack 25),24/06/2015,104174,5.28,Revenue,Lyreco UK Ltd,17623
Chorley Borough Council,http://statistics.data.gov.uk/id/local-authority/30UE,Corporate Management,1008,Chief Executives Office,Stationery,40050,"Printing, Stationery & General",5026,A5 Ruled Pads,24/06/2015,104174,0.87,Revenue,Lyreco UK Ltd,17623
Chorley Borough Council,http://statistics.data.gov.uk/id/local-authority/30UE,Unapportionable Central OHeads,1009,Chief Executives Office,Stationery,40050,"Printing, Stationery & General",5026,Micron Ball Point Black Stick Pens 0.7Mm Line Width - Box Of 50,24/06/2015,104174,1.50,Revenue,Lyreco UK Ltd,17623
Chorley Borough Council,http://statistics.data.gov.uk/id/local-authority/30UE,Unapportionable Central OHeads,1009,Chief Executives Office,Stationery,40050,"Printing, Stationery & General",5026,Shorthand notebooks..,24/06/2015,104174,2.00,Revenue,Lyreco UK Ltd,17623
Chorley Borough Council,http://statistics.data.gov.uk/id/local-authority/30UE,Unapportionable Central OHeads,1009,Chief Executives Office,Stationery,40050,"Printing, Stationery & General",5026,LYRECO MULTI-PURPOSE WHITE LABELS 199.6 X 143.5MM - BOX OF 200 (WITH SELVEDGE),24/06/2015,104174,2.12,Revenue,Lyreco UK Ltd,17623
Chorley Borough Council,http://statistics.data.gov.uk/id/local-authority/30UE,Homelessness,1075,Housing,Stationery,40050,"Printing, Stationery & General",5026,Lyreco Budget A4 Multi-Punched Plastic Pockets 55 Microns - Pack Of 100,19/06/2015,104184,12.30,Revenue,Lyreco UK Ltd,17623
Chorley Borough Council,http://statistics.data.gov.uk/id/local-authority/30UE,Homelessness,1075,Housing,Stationery,40050,"Printing, Stationery & General",5026,Lyreco Correction Tape Roller - 4.2Mm X 12M Film,19/06/2015,104184,3.00,Revenue,Lyreco UK Ltd,17623
Chorley Borough Council,http://statistics.data.gov.uk/id/local-authority/30UE,Homelessness,1075,Housing,Stationery,40050,"Printing, Stationery & General",5026,FOLDOVER A4 FOOLSCAP CLIPBOARD (RED),19/06/2015,104184,4.49,Revenue,Lyreco UK Ltd,17623
Chorley Borough Council,http://statistics.data.gov.uk/id/local-authority/30UE,Homelessness,1075,Housing,Stationery,40050,"Printing, Stationery & General",5026,FOLDOVER CLIPBOARD FC-501 PP BLUE,19/06/2015,104184,4.49,Revenue,Lyreco UK Ltd,17623
Chorley Borough Council,http://statistics.data.gov.uk/id/local-authority/30UE,Homelessness,1075,Housing,Stationery,40050,"Printing, Stationery & General",5026,LYRECO white 8x5 Inch Shorthand Notebook (PACK OF 6),19/06/2015,104184,9.12,Revenue,Lyreco UK Ltd,17623
Chorley Borough Council,http://statistics.data.gov.uk/id/local-authority/30UE,Homelessness,1075,Housing,Stationery,40050,"Printing, Stationery & General",5026,LYRECO `Things to Do Today` Book,19/06/2015,104184,8.64,Revenue,Lyreco UK Ltd,17623
Chorley Borough Council,http://statistics.data.gov.uk/id/local-authority/30UE,Homelessness,1075,Housing,Stationery,40050,"Printing, Stationery & General",5026,SHATTERPROOF RULER 30CM / 12 INCHES CLEAR,19/06/2015,104184,1.00,Revenue,Lyreco UK Ltd,17623
Chorley Borough Council,http://statistics.data.gov.uk/id/local-authority/30UE,Homelessness,1075,Housing,Stationery,40050,"Printing, Stationery & General",5026,Phone Cleaning Sachets (Pack 50),19/06/2015,104184,11.70,Revenue,Lyreco UK Ltd,17623
Chorley Borough Council,http://statistics.data.gov.uk/id/local-authority/30UE,Homelessness,1075,Housing,Stationery,40050,"Printing, Stationery & General",5026,PILOT Hi-Tecpoint V5 & V7 - BLACK (box of 12),19/06/2015,104184,19.80,Revenue,Lyreco UK Ltd,17623
Chorley Borough Council,http://statistics.data.gov.uk/id/local-authority/30UE,Homelessness,1075,Housing,Stationery,40050,"Printing, Stationery & General",5026,"A4 Black and Red books Hardback Ruled & Perforated, 70 sheets",19/06/2015,104184,34.76,Revenue,Lyreco UK Ltd,17623
Chorley Borough Council,http://statistics.data.gov.uk/id/local-authority/30UE,Homelessness,1075,Housing,Stationery,40050,"Printing, Stationery & General",5026,Plastic Key Hangers - Assorted,19/06/2015,104184,0.98,Revenue,Lyreco UK Ltd,17623
Chorley Borough Council,http://statistics.data.gov.uk/id/local-authority/30UE,Homelessness,1075,Housing,Stationery,40050,"Printing, Stationery & General",5026,Magiboards Magnetic Tape 10mm x 2m Black,19/06/2015,104184,10.18,Revenue,Lyreco UK Ltd,17623
Chorley Borough Council,http://statistics.data.gov.uk/id/local-authority/30UE,Homelessness,1075,Housing,Stationery,40050,"Printing, Stationery & General",5026,Adhesive Gridding Tape 1.5Mm X 10M - Black,19/06/2015,104184,6.12,Revenue,Lyreco UK Ltd,17623
Chorley Borough Council,http://statistics.data.gov.uk/id/local-authority/30UE,Homelessness,1075,Housing,Stationery,40050,"Printing, Stationery & General",5026,Adhesive Gridding Tape 1.5Mm X 10M - RED,19/06/2015,104184,11.27,Revenue,Lyreco UK Ltd,17623
Chorley Borough Council,http://statistics.data.gov.uk/id/local-authority/30UE,Homelessness,1075,Housing,Stationery,40050,"Printing, Stationery & General",5026,Lyreco Multi-Purpose White Labels 63.5 X 38.1Mm - Box Of 2100 (With Selvedge),19/06/2015,104184,2.12,Revenue,Lyreco UK Ltd,17623
Chorley Borough Council,http://statistics.data.gov.uk/id/local-authority/30UE,Homelessness,1075,Housing,Stationery,40050,"Printing, Stationery & General",5026,LYRECO Budget Polypropylene Red A4 Upright Lever Arch File (Box of 10),19/06/2015,104184,3.80,Revenue,Lyreco UK Ltd,17623
Chorley Borough Council,http://statistics.data.gov.uk/id/local-authority/30UE,Homelessness,1075,Housing,Stationery,40050,"Printing, Stationery & General",5026,LYRECO Budget Polypropylene A4 Yellow Upright Lever Arch File (Box of 10),19/06/2015,104184,3.80,Revenue,Lyreco UK Ltd,17623
Chorley Borough Council,http://statistics.data.gov.uk/id/local-authority/30UE,Homelessness,1075,Housing,Stationery,40050,"Printing, Stationery & General",5026,LYRECO Budget Polypropylene A4 Blue Lever Arch File (Box of 10),19/06/2015,104184,3.80,Revenue,Lyreco UK Ltd,17623
Chorley Borough Council,http://statistics.data.gov.uk/id/local-authority/30UE,Homelessness,1075,Housing,Stationery,40050,"Printing, Stationery & General",5026,Lyreco Budget polypropylene A4 Black Upright Lever Arch File (single),19/06/2015,104184,1.90,Revenue,Lyreco UK Ltd,17623
Chorley Borough Council,http://statistics.data.gov.uk/id/local-authority/30UE,Homelessness,1075,Housing,Stationery,40050,"Printing, Stationery & General",5026,Lyreco Budget Cloud-Finish Foolscap Box File,19/06/2015,104184,6.30,Revenue,Lyreco UK Ltd,17623
Chorley Borough Council,http://statistics.data.gov.uk/id/local-authority/30UE,Homelessness,1075,Housing,Stationery,40050,"Printing, Stationery & General",5026,Esselte A4 White 4D-Ring Presentation Binder 20Mm,19/06/2015,104184,101.83,Revenue,Lyreco UK Ltd,17623
Chorley Borough Council,http://statistics.data.gov.uk/id/local-authority/30UE,Homelessness,1075,Housing,Stationery,40050,"Printing, Stationery & General",5026,LYRECO Mylar Tabbed Indexes A4 1-15 (pack of 10),19/06/2015,104184,11.10,Revenue,Lyreco UK Ltd,17623
Chorley Borough Council,http://statistics.data.gov.uk/id/local-authority/30UE,Homelessness,1075,Housing,Stationery,40050,"Printing, Stationery & General",5026,Lyreco Plain Yellow Sticky Notes 75 X 75Mm - Pack Of 12 Pads,19/06/2015,104184,1.08,Revenue,Lyreco UK Ltd,17623
Chorley Borough Council,http://statistics.data.gov.uk/id/local-authority/30UE,Unapportionable Central OHeads,1009,Chief Executives Office,Stationery,40050,"Printing, Stationery & General",5026,Fellows Monitor Riser Plus,24/06/2015,104185,130.47,Revenue,Lyreco UK Ltd,17623
Chorley Borough Council,http://statistics.data.gov.uk/id/local-authority/30UE,Unapportionable Central OHeads,1009,Chief Executives Office,Stationery,40050,"Printing, Stationery & General",5026,Pukka Exec Project Books A4,24/06/2015,104185,20.67,Revenue,Lyreco UK Ltd,17623
Chorley Borough Council,http://statistics.data.gov.uk/id/local-authority/30UE,Elections,1012,Chief Executives Office,Stationery,40050,"Printing, Stationery & General",5026,"5C5 WINDOW ENVELOPES (WHITE, SELF SEAL)",24/06/2015,104185,57.44,Revenue,Lyreco UK Ltd,17623
Chorley Borough Council,http://statistics.data.gov.uk/id/local-authority/30UE,Democratic Represent and  Mgnt,1007,Chief Executives Office,Stationery,40050,"Printing, Stationery & General",5026,Lyreco Plain Yellow Sticky Notes 125 X 75Mm - Pack Of 12 Pads,24/06/2015,104185,1.20,Revenue,Lyreco UK Ltd,17623
Chorley Borough Council,http://statistics.data.gov.uk/id/local-authority/30UE,Unapportionable Central OHeads,1009,Chief Executives Office,Stationery,40050,"Printing, Stationery & General",5026,ADHESIVE LABELS 50MM DIA - COMPANY SEAL - RED - PACK OF 8,24/06/2015,104185,17.00,Revenue,Lyreco UK Ltd,17623
Chorley Borough Council,http://statistics.data.gov.uk/id/local-authority/30UE,Central Support Services,1009,Chief Executives Office,Stationery,40050,"Printing, Stationery & General",5026,Highlighters (pack of 8),24/06/2015,104185,7.14,Revenue,Lyreco UK Ltd,17623
Chorley Borough Council,http://statistics.data.gov.uk/id/local-authority/30UE,Central Support Services,1009,Chief Executives Office,Stationery,40050,"Printing, Stationery & General",5026,BIC black medium pens,24/06/2015,104185,3.47,Revenue,Lyreco UK Ltd,17623
Chorley Borough Council,http://statistics.data.gov.uk/id/local-authority/30UE,Central Support Services,1009,Chief Executives Office,Stationery,40050,"Printing, Stationery & General",5026,Post It Index 12mm B,24/06/2015,104185,8.98,Revenue,Lyreco UK Ltd,17623
Chorley Borough Council,http://statistics.data.gov.uk/id/local-authority/30UE,Central Support Services,1009,Chief Executives Office,Stationery,40050,"Printing, Stationery & General",5026,Impega Desk mat - black inc 25 sheets paper,24/06/2015,104185,9.45,Revenue,Lyreco UK Ltd,17623
Chorley Borough Council,http://statistics.data.gov.uk/id/local-authority/30UE,Central Support Services,1009,Chief Executives Office,Stationery,40050,"Printing, Stationery & General",5026,Lyreco Desk Mat Pad Refil,24/06/2015,104185,5.85,Revenue,Lyreco UK Ltd,17623
Chorley Borough Council,http://statistics.data.gov.uk/id/local-authority/30UE,Capital,Capital,Housing,Grants,3002,Capital Expenditure,Capital,INV001892 ADDRESS REDACTED,12/06/2015,104061,"2,700.00",Capital,M.J Park Building Contractors,20367
Chorley Borough Council,http://statistics.data.gov.uk/id/local-authority/30UE,Capital,Capital,Housing,Grants,3002,Capital Expenditure,Capital,INV 001891 15 ADDRESS REDACTED,12/06/2015,104062,"3,270.00",Capital,M.J Park Building Contractors,20367
Chorley Borough Council,http://statistics.data.gov.uk/id/local-authority/30UE,Unapportionable Central OHeads,1009,HR & Org. Development,Corp Training Organisational Development,17006,Indirect Employee Expenses,5002,2 Day Commercial Awareness Workshop 20-21 May 2015,24/06/2015,104127,"3,810.70",Revenue,Management Learning & Coaching Ltd.,63886
Chorley Borough Council,http://statistics.data.gov.uk/id/local-authority/30UE,Democratic Represent and  Mgnt,1007,HR & Org. Development,Agency Staff,13000,Direct Employee Expenses,5001,Agency Staff ,05/06/2015,103642,424.88,Revenue,Matrix SCM Ltd,22128
Chorley Borough Council,http://statistics.data.gov.uk/id/local-authority/30UE,Corporate Management,1008,HR & Org. Development,Agency Staff,13000,Direct Employee Expenses,5001,Agency Staff ,05/06/2015,103642,423.48,Revenue,Matrix SCM Ltd,22128
Chorley Borough Council,http://statistics.data.gov.uk/id/local-authority/30UE,Elections,1012,HR & Org. Development,Agency Staff,13000,Direct Employee Expenses,5001,Agency Staff ,05/06/2015,103642,365.11,Revenue,Matrix SCM Ltd,22128
Chorley Borough Council,http://statistics.data.gov.uk/id/local-authority/30UE,Unapportionable Central OHeads,1009,HR & Org. Development,Agency Staff,13000,Direct Employee Expenses,5001,Agency Staff ,05/06/2015,103642,45.00,Revenue,Matrix SCM Ltd,22128
Chorley Borough Council,http://statistics.data.gov.uk/id/local-authority/30UE,Unapportionable Central OHeads,1009,HR & Org. Development,Agency Staff,13000,Direct Employee Expenses,5001,Agency Staff ,05/06/2015,103642,524.18,Revenue,Matrix SCM Ltd,22128
Chorley Borough Council,http://statistics.data.gov.uk/id/local-authority/30UE,Democratic Represent and  Mgnt,1007,HR & Org. Development,Agency Staff,13000,Direct Employee Expenses,5001,Agency Staff ,05/06/2015,103824,266.68,Revenue,Matrix SCM Ltd,22128
Chorley Borough Council,http://statistics.data.gov.uk/id/local-authority/30UE,Corporate Management,1008,HR & Org. Development,Agency Staff,13000,Direct Employee Expenses,5001,Agency Staff ,05/06/2015,103824,394.27,Revenue,Matrix SCM Ltd,22128
Chorley Borough Council,http://statistics.data.gov.uk/id/local-authority/30UE,Unapportionable Central OHeads,1009,HR & Org. Development,Agency Staff,13000,Direct Employee Expenses,5001,Agency Staff ,05/06/2015,103824,535.03,Revenue,Matrix SCM Ltd,22128
Chorley Borough Council,http://statistics.data.gov.uk/id/local-authority/30UE,Unapportionable Central OHeads,1009,HR & Org. Development,Agency Staff,13000,Direct Employee Expenses,5001,Agency Staff ,05/06/2015,103824,274.74,Revenue,Matrix SCM Ltd,22128
Chorley Borough Council,http://statistics.data.gov.uk/id/local-authority/30UE,Elections,1012,HR & Org. Development,Agency Staff,13000,Direct Employee Expenses,5001,Agency Staff ,12/06/2015,104042,365.12,Revenue,Matrix SCM Ltd,22128
Chorley Borough Council,http://statistics.data.gov.uk/id/local-authority/30UE,Unapportionable Central OHeads,1009,HR & Org. Development,Agency Staff,13000,Direct Employee Expenses,5001,Agency Staff ,12/06/2015,104042,310.89,Revenue,Matrix SCM Ltd,22128
Chorley Borough Council,http://statistics.data.gov.uk/id/local-authority/30UE,Democratic Represent and  Mgnt,1007,HR & Org. Development,Agency Staff,13000,Direct Employee Expenses,5001,Agency Staff ,26/06/2015,104204,384.20,Revenue,Matrix SCM Ltd,22128
Chorley Borough Council,http://statistics.data.gov.uk/id/local-authority/30UE,Democratic Represent and  Mgnt,1007,HR & Org. Development,Agency Staff,13000,Direct Employee Expenses,5001,Agency Staff ,26/06/2015,104204,433.92,Revenue,Matrix SCM Ltd,22128
Chorley Borough Council,http://statistics.data.gov.uk/id/local-authority/30UE,Democratic Represent and  Mgnt,1007,HR & Org. Development,Agency Staff,13000,Direct Employee Expenses,5001,Agency Staff ,26/06/2015,104204,4.30,Revenue,Matrix SCM Ltd,22128
Chorley Borough Council,http://statistics.data.gov.uk/id/local-authority/30UE,Elections,1012,Governance,Rent/Hire Of Premises,20017,Premises Rents,5007,Hire of room for polling station 7 May 2015,17/06/2015,102538,264.00,Revenue,Mawdesley Village Hall,18423
Chorley Borough Council,http://statistics.data.gov.uk/id/local-authority/30UE,Unapportionable Central OHeads,1009,Governance,General Repairs - Reactive,20004,Repairs Maintenance & Alts,5005,Reactive blanket order until September 2015.,10/06/2015,103479,"1,915.00",Revenue,Maxigiene Environmental Services Ltd,67160
Chorley Borough Council,http://statistics.data.gov.uk/id/local-authority/30UE,Unapportionable Central OHeads,1009,Governance,Planned Maintenance,20006,Repairs Maintenance & Alts,5005,PPM blanket order until September 2015.,05/06/2015,103643,"1,587.50",Revenue,Maxigiene Environmental Services Ltd,67160
Chorley Borough Council,http://statistics.data.gov.uk/id/local-authority/30UE,Service Management & Support,1009,Streetscene & Leisure Contracts,Supplies-Grounds Maintenance,40025,"Equipment, Furniture & Materia",5023,20 ton of Ultitrec delivered to Yarrow Valley Park,10/06/2015,103830,377.72,Revenue,Mc & Ma Stewart (Haulage Ltd),16627
Chorley Borough Council,http://statistics.data.gov.uk/id/local-authority/30UE,Service Management & Support,1009,Streetscene & Leisure Contracts,Supplies-Grounds Maintenance,40025,"Equipment, Furniture & Materia",5023,20 ton Crush & Run 20mm to dust,17/06/2015,104113,374.67,Revenue,Mc & Ma Stewart (Haulage Ltd),16627
Chorley Borough Council,http://statistics.data.gov.uk/id/local-authority/30UE,Democratic Represent and  Mgnt,1007,Streetscene & Leisure Contracts,Supplies-Grounds Maintenance,40025,"Equipment, Furniture & Materia",5023,"Hanging Baskets, Troughs & Lamp post baskets",12/06/2015,103967,"6,867.57",Revenue,Midstream (West Lancs) Ltd,20873
Chorley Borough Council,http://statistics.data.gov.uk/id/local-authority/30UE,Economic Development,1096,Economic Development,Consultants` Fees,40077,Services,5027,CS30 & CS31 Ground based Chainsaw Operations 5 day course (Including NPTC Assessment Fee).  Dates:  13th - 17th,24/06/2015,104054,535.00,Revenue,Millhouse Training Ltd,66703
Chorley Borough Council,http://statistics.data.gov.uk/id/local-authority/30UE,Economic Development,1096,Economic Development,Consultants` Fees,40077,Services,5027,CS30 & CS31 Ground based Chainsaw Operations 5 day course (Including NPTC Assessment Fee).  Dates:  13th - 17th,24/06/2015,104054,310.00,Revenue,Millhouse Training Ltd,66703
Chorley Borough Council,http://statistics.data.gov.uk/id/local-authority/30UE,Capital,Capital,Housing,Grants,3002,Capital Expenditure,Capital,INV15065 86 Carleton Road,12/06/2015,104058,"4,943.07",Capital,Mint Northwest Ltd,65607
Chorley Borough Council,http://statistics.data.gov.uk/id/local-authority/30UE,Corporate Management,1008,Policy & Performance,Exhibitions & Special Events,40158,Miscellaneous Expenses,5034,Two children`s entertainers to provide half term activities in Market Walk,03/06/2015,103671,735.00,Revenue,Montana Events,61316
Chorley Borough Council,http://statistics.data.gov.uk/id/local-authority/30UE,Central Support Services,1009,Streetscene & Leisure Contracts,Miscellaneous Expenses,40200,Miscellaneous Expenses,5034,"Works completed @ Canal Basin, Whittle le Woods Extension of footpath",17/06/2015,104011,440.00,Revenue,Mr Stephen Scambler,16710
Chorley Borough Council,http://statistics.data.gov.uk/id/local-authority/30UE,Central Support Services,1009,Streetscene & Leisure Contracts,Miscellaneous Expenses,40200,Miscellaneous Expenses,5034,Materials,17/06/2015,104011,770.00,Revenue,Mr Stephen Scambler,16710
Chorley Borough Council,http://statistics.data.gov.uk/id/local-authority/30UE,Economic Development,1096,Economic Development,Grants To Other Organisations,40127,Grants and Subscriptions,5031,Shop Front Grant,03/06/2015,103673,851.62,Revenue,Mr T A Hardyman,67519
Chorley Borough Council,http://statistics.data.gov.uk/id/local-authority/30UE,Service Management & Support,1009,Policy & Performance,Miscellaneous Expenses,40200,Miscellaneous Expenses,5034,"Wristbands for Chorley Flower Show - 20,000 for visitors, 500 for exhibitors",19/06/2015,104139,"2,305.00",Revenue,Munco International T/A Adband,60837
Chorley Borough Council,http://statistics.data.gov.uk/id/local-authority/30UE,Service Management & Support,1009,Streetscene & Leisure Contracts,Registered Plant - Maintenance,40247,"Equipment, Furniture & Materia",5023,Works carried out on Chorley Council vehicles as requested,10/06/2015,103850,259.00,Revenue,MW Grass Machinery,21616
Chorley Borough Council,http://statistics.data.gov.uk/id/local-authority/30UE,Service Management & Support,1009,Streetscene & Leisure Contracts,Hire Of Transport,30028,Contrct Hire & Operating Lease,5018,Hire of rotovator for 10 days for summer bedding as required,10/06/2015,103850,400.00,Revenue,MW Grass Machinery,21616
Chorley Borough Council,http://statistics.data.gov.uk/id/local-authority/30UE,Service Management & Support,1009,Streetscene & Leisure Contracts,Miscellaneous Expenses,40200,Miscellaneous Expenses,5034,8PP A5 + 4PP COVER CHORLEY FLOWER SHOW BROCHURE  As per Estimate 122674 Quantity 1250,03/06/2015,103622,395.00,Revenue,N B Colour Print Ltd,17917
Chorley Borough Council,http://statistics.data.gov.uk/id/local-authority/30UE,Private Sector HSG Renewal,1073,Housing,Stationery,40050,"Printing, Stationery & General",5026,Adaptation service wallet folder (for DFG case files),19/06/2015,104145,710.00,Revenue,N B Colour Print Ltd,17917
Chorley Borough Council,http://statistics.data.gov.uk/id/local-authority/30UE,Service Management & Support,1009,Streetscene & Leisure Contracts,Refuse Collection,20037,Cleaning and Domestic Supplies,5012,Exchange of street cleaning waste skip 20 yard skip and 35yard skip  at price quoted removed from Bengal St depot ,19/06/2015,103959,"1,259.52",Revenue,Neales Waste Management,17583
Chorley Borough Council,http://statistics.data.gov.uk/id/local-authority/30UE,Central Support Services,1009,Streetscene & Leisure Contracts,Tools & Equipment - Purchase,40003,"Equipment, Furniture & Materia",5023,"Collection and analysis of fly tipped waste from Dover Lane, Brindle on 3 March 2015",10/06/2015,103968,250.00,Revenue,Neales Waste Management,17583
Chorley Borough Council,http://statistics.data.gov.uk/id/local-authority/30UE,Business Support,1095,Streetscene & Leisure Contracts,Refuse Collection,20037,Cleaning and Domestic Supplies,5012,Disposal costs for waste from the Compactor skip Market Walk yard 1. Price per tonne.,10/06/2015,103971,440.00,Revenue,Neales Waste Management,17583
Chorley Borough Council,http://statistics.data.gov.uk/id/local-authority/30UE,Business Support,1095,Streetscene & Leisure Contracts,Refuse Collection,20037,Cleaning and Domestic Supplies,5012,"Cardboard and plastic recycling Skip exchanges Yards 1, 2 and 3 Market Walk. 35 cubic yard RORO",10/06/2015,103971,150.00,Revenue,Neales Waste Management,17583
Chorley Borough Council,http://statistics.data.gov.uk/id/local-authority/30UE,Business Support,1095,Streetscene & Leisure Contracts,Refuse Collection,20037,Cleaning and Domestic Supplies,5012,Disposal costs for waste from the Compactor skip Market Walk yard 1. Price per tonne.,10/06/2015,103972,220.00,Revenue,Neales Waste Management,17583
Chorley Borough Council,http://statistics.data.gov.uk/id/local-authority/30UE,Business Support,1095,Streetscene & Leisure Contracts,Refuse Collection,20037,Cleaning and Domestic Supplies,5012,"Cardboard and plastic recycling Skip exchanges Yards 1, 2 and 3 Market Walk. 35 cubic yard RORO",10/06/2015,103972,50.00,Revenue,Neales Waste Management,17583
Chorley Borough Council,http://statistics.data.gov.uk/id/local-authority/30UE,Business Support,1095,Streetscene & Leisure Contracts,Refuse Collection,20037,Cleaning and Domestic Supplies,5012,Disposal costs for waste from the Compactor skip Market Walk yard 1. Price per tonne.,10/06/2015,103973,"2,566.93",Revenue,Neales Waste Management,17583
Chorley Borough Council,http://statistics.data.gov.uk/id/local-authority/30UE,Business Support,1095,Streetscene & Leisure Contracts,Refuse Collection,20037,Cleaning and Domestic Supplies,5012,"Cardboard and plastic recycling Skip exchanges Yards 1, 2 and 3 Market Walk. 35 cubic yard RORO",10/06/2015,103973,100.00,Revenue,Neales Waste Management,17583
Chorley Borough Council,http://statistics.data.gov.uk/id/local-authority/30UE,Service Management & Support,1009,Streetscene & Leisure Contracts,Refuse Collection,20037,Cleaning and Domestic Supplies,5012,Exchange of mixed waste at Bengal Street,19/06/2015,103981,665.28,Revenue,Neales Waste Management,17583
Chorley Borough Council,http://statistics.data.gov.uk/id/local-authority/30UE,Central Support Services,1009,Health Environment & Neighbourhoods,Miscellaneous Expenses,40200,Miscellaneous Expenses,5034,"Supply skip with exchanges if required for Saturday 16th may 2015 deliver to Polo Park, Chorley Old road, Whittle le Woods",17/06/2015,103982,763.84,Revenue,Neales Waste Management,17583
Chorley Borough Council,http://statistics.data.gov.uk/id/local-authority/30UE,Business Support,1095,Streetscene & Leisure Contracts,Refuse Collection,20037,Cleaning and Domestic Supplies,5012,Disposal costs for waste from the Compactor skip Market Walk yard 1. Price per tonne.,17/06/2015,104089,"1,156.44",Revenue,Neales Waste Management,17583
Chorley Borough Council,http://statistics.data.gov.uk/id/local-authority/30UE,Service Management & Support,1009,Streetscene & Leisure Contracts,Refuse Collection,20037,Cleaning and Domestic Supplies,5012,Exchange of street cleaning waste skip 20 yard skip and 35yard skip  at price quoted removed from Bengal St depot ,19/06/2015,104092,987.67,Revenue,Neales Waste Management,17583
Chorley Borough Council,http://statistics.data.gov.uk/id/local-authority/30UE,Capital,Capital,Streetscene & Leisure Contracts,Main Contractor,3007,Capital Expenditure,Capital,Design and Build of Astley Park Destination Play Area in accordance with signed JCT Design and Build Contracts,17/06/2015,104065,"51,626.59",Capital,Newground CIC,22064
Chorley Borough Council,http://statistics.data.gov.uk/id/local-authority/30UE,Unapportionable Central OHeads,1009,Chief Executives Office,Stationery,40050,"Printing, Stationery & General",5026,Newspapers Supplied (April 2015 to June 2015),26/06/2015,104293,346.00,Revenue,Nooze `n` Booze,19382
Chorley Borough Council,http://statistics.data.gov.uk/id/local-authority/30UE,Unapportionable Central OHeads,1009,Governance,General Repairs - Reactive,20004,Repairs Maintenance & Alts,5005,Six month blanket order for management services at Market Walk until September 2015.,19/06/2015,104021,"2,100.00",Revenue,Norland Managed Services Ltd,69960
Chorley Borough Council,http://statistics.data.gov.uk/id/local-authority/30UE,Service Management & Support,1009,Streetscene & Leisure Contracts,Supplies & Consumables -Street Cleansing,40235,"Equipment, Furniture & Materia",5023,Supply poly sweeping brushes for Schmidt Swingo,03/06/2015,103690,214.35,Revenue,Northern Municipal Spares Ltd,17752
Chorley Borough Council,http://statistics.data.gov.uk/id/local-authority/30UE,Service Management & Support,1009,Streetscene & Leisure Contracts,Supplies & Consumables -Street Cleansing,40235,"Equipment, Furniture & Materia",5023,Supply Poly wire sweeping brushes for Schmidt Swingo,03/06/2015,103690,316.05,Revenue,Northern Municipal Spares Ltd,17752
Chorley Borough Council,http://statistics.data.gov.uk/id/local-authority/30UE,Service Management & Support,1009,Streetscene & Leisure Contracts,Hire Of Transport,30028,Contrct Hire & Operating Lease,5018,Hire of Ford Transit crewcab tipper NK13YPT 30/04/2015 - 31/03/2016,12/06/2015,103745,509.29,Revenue,Northgate Vehicle Hire (NW) Ltd,17360
Chorley Borough Council,http://statistics.data.gov.uk/id/local-authority/30UE,Service Management & Support,1009,Streetscene & Leisure Contracts,Hire Of Transport,30028,Contrct Hire & Operating Lease,5018,Hire of Ford Transit crewcab tipper NL12OFG  30/04/2015 - 31/03/2016,12/06/2015,103745,522.58,Revenue,Northgate Vehicle Hire (NW) Ltd,17360
Chorley Borough Council,http://statistics.data.gov.uk/id/local-authority/30UE,Service Management & Support,1009,Streetscene & Leisure Contracts,Hire Of Transport,30028,Contrct Hire & Operating Lease,5018,Hire of Ford Transit crewcab tipper NL12ONR 30/04/2015 - 31/03/2016,12/06/2015,103745,522.57,Revenue,Northgate Vehicle Hire (NW) Ltd,17360
Chorley Borough Council,http://statistics.data.gov.uk/id/local-authority/30UE,Service Management & Support,1009,Streetscene & Leisure Contracts,Hire Of Transport,30028,Contrct Hire & Operating Lease,5018,Hire of Ford Transit tipper NJ10OVN 30/04/2015 - 31/03/2016,12/06/2015,103745,407.43,Revenue,Northgate Vehicle Hire (NW) Ltd,17360
Chorley Borough Council,http://statistics.data.gov.uk/id/local-authority/30UE,Service Management & Support,1009,Streetscene & Leisure Contracts,Hire Of Transport,30028,Contrct Hire & Operating Lease,5018,Hire of Ford Transit tipper NJ10OTK 30/04/2015 - 31/03/2016,12/06/2015,103745,407.43,Revenue,Northgate Vehicle Hire (NW) Ltd,17360
Chorley Borough Council,http://statistics.data.gov.uk/id/local-authority/30UE,Service Management & Support,1009,Streetscene & Leisure Contracts,Hire Of Transport,30028,Contrct Hire & Operating Lease,5018,Hire of Ford Transit tipper NJ60KFK 30/04/2015 - 31/03/2016,12/06/2015,103745,413.81,Revenue,Northgate Vehicle Hire (NW) Ltd,17360
Chorley Borough Council,http://statistics.data.gov.uk/id/local-authority/30UE,Service Management & Support,1009,Streetscene & Leisure Contracts,Hire Of Transport,30028,Contrct Hire & Operating Lease,5018,Hire of Ford Transit tipper NK13YNV 30/04/2015 - 31/03/2016,12/06/2015,103745,428.60,Revenue,Northgate Vehicle Hire (NW) Ltd,17360
Chorley Borough Council,http://statistics.data.gov.uk/id/local-authority/30UE,Corporate Management,1008,Streetscene & Leisure Contracts,Hire Of Transport,30028,Contrct Hire & Operating Lease,5018,Hire of Peugeot Partner van NX62UCS 30/04/2015 - 31/03/2016,12/06/2015,103745,241.40,Revenue,Northgate Vehicle Hire (NW) Ltd,17360
Chorley Borough Council,http://statistics.data.gov.uk/id/local-authority/30UE,Corporate Management,1008,Streetscene & Leisure Contracts,Hire Of Transport,30028,Contrct Hire & Operating Lease,5018,Hire of Peugeot Partner van NV60BVF 30/04/2015 - 31/03/2016,12/06/2015,103745,241.40,Revenue,Northgate Vehicle Hire (NW) Ltd,17360
Chorley Borough Council,http://statistics.data.gov.uk/id/local-authority/30UE,Service Management & Support,1009,Streetscene & Leisure Contracts,Hire Of Transport,30028,Contrct Hire & Operating Lease,5018,Fuel - Buy it Later,12/06/2015,103745,47.60,Revenue,Northgate Vehicle Hire (NW) Ltd,17360
Chorley Borough Council,http://statistics.data.gov.uk/id/local-authority/30UE,Service Management & Support,1009,Streetscene & Leisure Contracts,Hire Of Transport,30028,Contrct Hire & Operating Lease,5018,Hire of Ford Transit tipper NJ10OXG 30/04/2015 - 31/03/2016,12/06/2015,103745,407.43,Revenue,Northgate Vehicle Hire (NW) Ltd,17360
Chorley Borough Council,http://statistics.data.gov.uk/id/local-authority/30UE,Business Support,1095,Governance,Electricity,20013,Energy Costs,5006,Leigh Arms,12/06/2015,103613,"2,421.52",Revenue,Npower Commercial Gas,16814
Chorley Borough Council,http://statistics.data.gov.uk/id/local-authority/30UE,Democratic Represent and  Mgnt,1007,Governance,Electricity,20013,Energy Costs,5006,Astley Hall Farm,05/06/2015,103706,107.84,Revenue,Npower Commercial Gas,16814
Chorley Borough Council,http://statistics.data.gov.uk/id/local-authority/30UE,Corporate Management,1008,Governance,Electricity,20013,Energy Costs,5006,Cemetery Chapel,05/06/2015,103706,2.32,Revenue,Npower Commercial Gas,16814
Chorley Borough Council,http://statistics.data.gov.uk/id/local-authority/30UE,Unapportionable Central OHeads,1009,Governance,Electricity,20013,Energy Costs,5006,Civic Offices,05/06/2015,103706,"3,071.43",Revenue,Npower Commercial Gas,16814
Chorley Borough Council,http://statistics.data.gov.uk/id/local-authority/30UE,Unapportionable Central OHeads,1009,Governance,Electricity,20013,Energy Costs,5006,Bengal street,05/06/2015,103706,965.49,Revenue,Npower Commercial Gas,16814
Chorley Borough Council,http://statistics.data.gov.uk/id/local-authority/30UE,Unapportionable Central OHeads,1009,Governance,Electricity,20013,Energy Costs,5006,Town Hall,05/06/2015,103706,"1,980.56",Revenue,Npower Commercial Gas,16814
Chorley Borough Council,http://statistics.data.gov.uk/id/local-authority/30UE,Homelessness,1075,Governance,Electricity,20013,Energy Costs,5006,Cotswold House,05/06/2015,103706,57.99,Revenue,Npower Commercial Gas,16814
Chorley Borough Council,http://statistics.data.gov.uk/id/local-authority/30UE,Parking Services,1066,Streetscene & Leisure Contracts,External Contractors,50008,Private Contractors,5042,"Provision of off street car park enforcement, cash collection, cash counting facilities and third party bulk cash collections",03/06/2015,103748,"3,489.02",Revenue,NSL Limited,67253
Chorley Borough Council,http://statistics.data.gov.uk/id/local-authority/30UE,Parking Services,1066,Streetscene & Leisure Contracts,External Contractors,50008,Private Contractors,5042,Provision of maintenance for 24 car park pay and display machines including new machine on Fleet St short stay car park ,10/06/2015,103880,"13,102.71",Revenue,Parkeon Ltd,16279
Chorley Borough Council,http://statistics.data.gov.uk/id/local-authority/30UE,Unapportionable Central OHeads,1009,Policy & Performance,Communications Consultancy,40224,Services,5027,Use of the Attain system for 6 months for Value Adding learning work,24/06/2015,104244,474.00,Revenue,Parker Sandford Ltd,61771
Chorley Borough Council,http://statistics.data.gov.uk/id/local-authority/30UE,Service Management & Support,1009,Streetscene & Leisure Contracts,Supplies-Grounds Maintenance,40025,"Equipment, Furniture & Materia",5023,Various indoor plants,12/06/2015,103931,505.60,Revenue,Peter H Smith Limited,17088
Chorley Borough Council,http://statistics.data.gov.uk/id/local-authority/30UE,Capital,Capital,Streetscene & Leisure Contracts,Main Contractor,3007,Capital Expenditure,Capital,"John - time on site at Astley Hall on 25th March Offering guidance on methods for cutting floor boards and lending",03/06/2015,103723,695.15,Capital,Peter Hall and Son Limited,62741
Chorley Borough Council,http://statistics.data.gov.uk/id/local-authority/30UE,Central Support Services,1009,Health Environment & Neighbourhoods,External Contractor,40198,Miscellaneous Expenses,5034,Pest control services from April 1st 2015 up to and inclusive March 31st 2016,03/06/2015,103759,323.83,Revenue,Peter L Johnson,16727
Chorley Borough Council,http://statistics.data.gov.uk/id/local-authority/30UE,Central Support Services,1009,Health Environment & Neighbourhoods,External Contractor,40198,Miscellaneous Expenses,5034,Pest control services from April 1st 2015 up to and inclusive March 31st 2016,17/06/2015,104114,323.83,Revenue,Peter L Johnson,16727
Chorley Borough Council,http://statistics.data.gov.uk/id/local-authority/30UE,Central Support Services,1009,Health Environment & Neighbourhoods,External Contractor,40198,Miscellaneous Expenses,5034,Pest control services from April 1st 2015 up to and inclusive March 31st 2016,17/06/2015,104115,323.83,Revenue,Peter L Johnson,16727
Chorley Borough Council,http://statistics.data.gov.uk/id/local-authority/30UE,Central Support Services,1009,Health Environment & Neighbourhoods,External Contractor,40198,Miscellaneous Expenses,5034,Pest control services from April 1st 2015 up to and inclusive March 31st 2016,26/06/2015,104263,323.83,Revenue,Peter L Johnson,16727
Chorley Borough Council,http://statistics.data.gov.uk/id/local-authority/30UE,Service Management & Support,1009,Streetscene & Leisure Contracts,Diesel/Derv,30007,Direct Transport Costs,5016,Supply 1000 litres of road diesel delivered to Bengal St depot,10/06/2015,103825,"1,035.00",Revenue,Pilkington Oils,18075
Chorley Borough Council,http://statistics.data.gov.uk/id/local-authority/30UE,Service Management & Support,1009,Streetscene & Leisure Contracts,Diesel/Derv,30007,Direct Transport Costs,5016,Supply 1000 litres of gas oil delivered to Bengal St depot,10/06/2015,103826,790.00,Revenue,Pilkington Oils,18075
Chorley Borough Council,http://statistics.data.gov.uk/id/local-authority/30UE,Unapportionable Central OHeads,1009,Chief Executives Office,Furniture - Maintenance,40014,"Equipment, Furniture & Materia",5023,DI350 1-Station Insterter,12/06/2015,104040,462.89,Revenue,Pitney Bowes Ltd,18077
Chorley Borough Council,http://statistics.data.gov.uk/id/local-authority/30UE,Unapportionable Central OHeads,1009,Governance,Furniture - Purchase,40012,"Equipment, Furniture & Materia",5023,1 x 2-door MFC Credenza in Calais Oak Lockable. 1000w x 500d x 750h.,03/06/2015,103697,386.40,Revenue,Planscape Business Interiors Ltd,69451
Chorley Borough Council,http://statistics.data.gov.uk/id/local-authority/30UE,Precepts and Collection Fund,Precepts,Shared Service Arrangement,LPA Precept,2010,Precepts & Collection Fund,Precept,precept may,10/06/2015,103582,"559,645.00",Revenue,Police & Crime Commissioner,17438
Chorley Borough Council,http://statistics.data.gov.uk/id/local-authority/30UE,Central Support Services,1009,Policy & Performance,Miscellaneous Expenses,40200,Miscellaneous Expenses,5034,Banners for gantry and podium for Chorley Grand Prix,05/06/2015,103717,"2,596.93",Revenue,Poppy Signs Ltd,21898
Chorley Borough Council,http://statistics.data.gov.uk/id/local-authority/30UE,Capital,Capital,Streetscene & Leisure Contracts,Main Contractor,3007,Capital Expenditure,Capital,"Batch of 3 signs 700mm x 600mm on rails Full colour digital print Supply only, free delivery",10/06/2015,103832,287.91,Capital,Poppy Signs Ltd,21898
Chorley Borough Council,http://statistics.data.gov.uk/id/local-authority/30UE,Service Management & Support,1009,Streetscene & Leisure Contracts,Supplies-Grounds Maintenance,40025,"Equipment, Furniture & Materia",5023,Quote Ref: REF5460/2.  5 nr Welcome signs for Coronation Rec and 4 nr bowling green signs.,17/06/2015,103916,496.93,Revenue,Poppy Signs Ltd,21898
Chorley Borough Council,http://statistics.data.gov.uk/id/local-authority/30UE,Unapportionable Central OHeads,1009,HR & Org. Development,Leadership Development Programme,17008,Indirect Employee Expenses,5002,Coaching Sessions for Staff,17/06/2015,104097,450.00,Revenue,Potential Unearthed,22243
Chorley Borough Council,http://statistics.data.gov.uk/id/local-authority/30UE,Unapportionable Central OHeads,1009,Chief Executives Office,Photocopier Consumables,40049,"Printing, Stationery & General",5026,"Evolution Everyday A4 80gsm, Box 2500",05/06/2015,103847,454.00,Revenue,Premier Paper Group,54451
Chorley Borough Council,http://statistics.data.gov.uk/id/local-authority/30UE,Unapportionable Central OHeads,1009,Governance,Refreshments,40036,Catering,5024,council offices water cooler supply and sanitation,10/06/2015,103882,517.20,Revenue,Pressure Coolers Ltd T/A Maestro International Ltd,19767
Chorley Borough Council,http://statistics.data.gov.uk/id/local-authority/30UE,Service Management & Support,1009,Policy & Performance,Miscellaneous Expenses,40200,Miscellaneous Expenses,5034,Gardening celebrity Bob Flowerdew for Chorley Flower Show,19/06/2015,104169,"1,500.00",Revenue,Prime Performers Limited,70499
Chorley Borough Council,http://statistics.data.gov.uk/id/local-authority/30UE,Elections,1012,Governance,Printing,40043,"Printing, Stationery & General",5026,Parliamentary CNL`s,03/06/2015,103733,498.00,Revenue,Print Image Network,21171
Chorley Borough Council,http://statistics.data.gov.uk/id/local-authority/30UE,Elections,1012,Governance,Printing,40043,"Printing, Stationery & General",5026,Combined Borough/Parliamentary poll cards,03/06/2015,103734,"5,811.60",Revenue,Print Image Network,21171
Chorley Borough Council,http://statistics.data.gov.uk/id/local-authority/30UE,Elections,1012,Governance,Printing,40043,"Printing, Stationery & General",5026,Chorley borough CNL`s,03/06/2015,103735,510.00,Revenue,Print Image Network,21171
Chorley Borough Council,http://statistics.data.gov.uk/id/local-authority/30UE,Elections,1012,Governance,Printing,40043,"Printing, Stationery & General",5026,Combined postal vote packs for Parliamentary/Borough Elections,12/06/2015,104051,"21,155.29",Revenue,Print Image Network,21171
Chorley Borough Council,http://statistics.data.gov.uk/id/local-authority/30UE,Elections,1012,Governance,Printing,40043,"Printing, Stationery & General",5026,"Parish postal vote packs - Clayton East, Heskin, Cuerden & Bretherton",17/06/2015,104124,"3,705.00",Revenue,Print Image Network,21171
Chorley Borough Council,http://statistics.data.gov.uk/id/local-authority/30UE,Planning Policy,1092,Planning,Professional Fees,40063,Services,5027,32 HOURS WORKED AT 20.00 PER HOUR 18 DECEMBER 2014 TO 31 MARCH 2015,10/06/2015,103953,647.15,Revenue,Programme Officer Services Ltd,57093
Chorley Borough Council,http://statistics.data.gov.uk/id/local-authority/30UE,Democratic Represent and  Mgnt,1007,Streetscene & Leisure Contracts,Supplies-Grounds Maintenance,40025,"Equipment, Furniture & Materia",5023,"Order of quotation no 1505.9460.  Trim Trail Equipment signs, fixings and delivery.",17/06/2015,103952,445.00,Revenue,Proludic Ltd,22087
Chorley Borough Council,http://statistics.data.gov.uk/id/local-authority/30UE,Unapportionable Central OHeads,1009,Governance,Tools & Equipment - Purchase,40003,"Equipment, Furniture & Materia",5023,Supply of new battery on fire alarm system at Union St April 2015,24/06/2015,104206,250.04,Revenue,Protec Fire Detection Plc,17988
Chorley Borough Council,http://statistics.data.gov.uk/id/local-authority/30UE,Capital,Capital,Streetscene & Leisure Contracts,Main Contractor,3007,Capital Expenditure,Capital,"Provision of additional 7 days security @ 7 days x 6 hrs x 8.50 3 days x 3 visits x 12",12/06/2015,103835,465.00,Capital,Protege Security Ltd,62271
Chorley Borough Council,http://statistics.data.gov.uk/id/local-authority/30UE,Capital,Capital,Streetscene & Leisure Contracts,Other Contractor,3012,Capital Expenditure,Capital,Astley Park Play Area - Provision of Security to Construction Compound Static Guarding x 21 days @ 51 a day plus VAT,10/06/2015,103836,"1,323.00",Capital,Protege Security Ltd,62271
Chorley Borough Council,http://statistics.data.gov.uk/id/local-authority/30UE,Interest Payable on Debt,1020,Shared Service Arrangement,Interest Payable,9009,Interest Payments,5067,interest,10/06/2015,103615,"60,000.00",Revenue,Public Works Loans Board,21480
Chorley Borough Council,http://statistics.data.gov.uk/id/local-authority/30UE,Interest Payable on Debt,1020,Shared Service Arrangement,Interest Payable,9009,Interest Payments,5067,Interest,10/06/2015,103740,"211,100.82",Revenue,Public Works Loans Board,21480
Chorley Borough Council,http://statistics.data.gov.uk/id/local-authority/30UE,Service Management & Support,1009,Streetscene & Leisure Contracts,Supplies-Grounds Maintenance,40025,"Equipment, Furniture & Materia",5023,Supply 300 m square of turf to be delivered to Astley Park,10/06/2015,103934,495.00,Revenue,R H F Turf,17990
Chorley Borough Council,http://statistics.data.gov.uk/id/local-authority/30UE,Economic Development,1096,Economic Development,Grants To Other Organisations,40127,Grants and Subscriptions,5031,Shop floor improvement grant,05/06/2015,103703,727.50,Revenue,Rebecca Slater  (t/a Flame Nails and Beauty),70089
Chorley Borough Council,http://statistics.data.gov.uk/id/local-authority/30UE,Economic Development,1096,Economic Development,Grants To Other Organisations,40127,Grants and Subscriptions,5031,Shop floor improvement grant,05/06/2015,103703,"2,870.00",Revenue,Rebecca Slater  (t/a Flame Nails and Beauty),70089
Chorley Borough Council,http://statistics.data.gov.uk/id/local-authority/30UE,Capital,Capital,Streetscene & Leisure Contracts,Consultants Fees,3025,Capital Expenditure,Capital,Utilities report,17/06/2015,104038,350.00,Capital,Reid Jones Partnership Ltd,68567
Chorley Borough Council,http://statistics.data.gov.uk/id/local-authority/30UE,Control Accounts,Control,HR & Org. Development,General Balances,100,Balance Sheet,Balance,childcare vouchers,10/06/2015,103001,"5,411.61",Revenue,Reward Gateway (UK) Ltd,66814
Chorley Borough Council,http://statistics.data.gov.uk/id/local-authority/30UE,Business Support,1095,Policy & Performance,Research & Feasibilities,40079,Services,5027,Project management and planning consultancy services as part of the Market Walk Extension project,10/06/2015,103881,"5,250.00",Revenue,Rider Levett Bucknall,67527
Chorley Borough Council,http://statistics.data.gov.uk/id/local-authority/30UE,Service Management & Support,1009,Streetscene & Leisure Contracts,Supplies-Grounds Maintenance,40025,"Equipment, Furniture & Materia",5023,40 x 5ltr Trustee Amenity Glyphosate,17/06/2015,104055,"1,060.00",Revenue,Rigby Taylor Ltd,16299
Chorley Borough Council,http://statistics.data.gov.uk/id/local-authority/30UE,Service Management & Support,1009,Streetscene & Leisure Contracts,External Contractor,40198,Miscellaneous Expenses,5034,Traffic Management for Chorley Civic Sunday Parade,05/06/2015,103842,780.00,Revenue,Road Safety Services Ltd,69457
Chorley Borough Council,http://statistics.data.gov.uk/id/local-authority/30UE,Economic Development,1096,Economic Development,Grants To Other Organisations,40127,Grants and Subscriptions,5031,Starting in business grant,05/06/2015,103760,250.00,Revenue,NAME REDACTED,70378
Chorley Borough Council,http://statistics.data.gov.uk/id/local-authority/30UE,Elections,1012,Governance,Postages,40082,Communication and Computing,5028,Business reply mail from April 2015 - March 2016 for RRHA KZCB CAXA,24/06/2015,104146,"3,144.72",Revenue,Royal Mail Group Plc,17522
Chorley Borough Council,http://statistics.data.gov.uk/id/local-authority/30UE,Central Support Services,1009,Health Environment & Neighbourhoods,Sports Development Initiatives,40186,Miscellaneous Expenses,5034,Supply of medals and trophies Order placed by email Quote prepared,03/06/2015,103689,475.75,Revenue,Running Imp,20636
Chorley Borough Council,http://statistics.data.gov.uk/id/local-authority/30UE,Homelessness,1075,Housing,External Contractor,40198,Miscellaneous Expenses,5034,"Cotswold Road, Chorley, Lancashire, PR7 3HW. This is for the period February 2015 to March 2016 inclusive",03/06/2015,103603,"2,322.43",Revenue,Sector Security Services,19269
Chorley Borough Council,http://statistics.data.gov.uk/id/local-authority/30UE,Homelessness,1075,Housing,External Contractor,40198,Miscellaneous Expenses,5034,"Cotswold Road, Chorley, Lancashire, PR7 3HW. This is for the period February 2015 to March 2016 inclusive",10/06/2015,103923,"2,197.23",Revenue,Sector Security Services,19269
Chorley Borough Council,http://statistics.data.gov.uk/id/local-authority/30UE,Homelessness,1075,Housing,External Contractor,40198,Miscellaneous Expenses,5034,"Concierge Service at Cotswold Supported Housing, Cotswold Road, Chorley, Lancashire, PR7 3HW period Feb 15 March 16 ",26/06/2015,104236,"2,231.60",Revenue,Sector Security Services,19269
Chorley Borough Council,http://statistics.data.gov.uk/id/local-authority/30UE,Unapportionable Central OHeads,1009,Governance,General Subscriptions,40146,Grants and Subscriptions,5031,Subscription renewal for 2015/16 for the North West Legal Consortium,19/06/2015,104128,500.00,Revenue,Sefton MBC,20443
Chorley Borough Council,http://statistics.data.gov.uk/id/local-authority/30UE,Homelessness,1075,Housing,Training Course Fees,17010,Indirect Employee Expenses,5002,Shelter Training: Housing Possession Hearings: Practice and Procedure Manchester on 22nd & 23rd Sep 2015,17/06/2015,103872,330.00,Revenue,Shelter Training,21902
Chorley Borough Council,http://statistics.data.gov.uk/id/local-authority/30UE,Parking Services,1066,Streetscene & Leisure Contracts,External Contractor,40198,Miscellaneous Expenses,5034,Carryout surfacing works at Farrington Street car park at price quoted,12/06/2015,104037,"4,296.80",Revenue,Shiloh Surfacing,61457
Chorley Borough Council,http://statistics.data.gov.uk/id/local-authority/30UE,Service Management & Support,1009,Streetscene & Leisure Contracts,Protective Clothing,40040,"Clothing, Uniforms and Laundry",5025,Yellow Hi Vis 3/4 length breathable waterproof jacket c/w Chorley Council Logo.  Product Code = CSR30.  Size = Small,03/06/2015,103633,58.60,Revenue,Smart Image Workwear,21064
Chorley Borough Council,http://statistics.data.gov.uk/id/local-authority/30UE,Service Management & Support,1009,Streetscene & Leisure Contracts,Protective Clothing,40040,"Clothing, Uniforms and Laundry",5025,High Vis Yellow waterproof windproof breathable outer trousers.  Product Code = CSR32.  Size = Small,03/06/2015,103633,60.75,Revenue,Smart Image Workwear,21064
Chorley Borough Council,http://statistics.data.gov.uk/id/local-authority/30UE,Service Management & Support,1009,Streetscene & Leisure Contracts,Protective Clothing,40040,"Clothing, Uniforms and Laundry",5025,High Vis Yellow waterproof windproof breathable outer trousers.  Product Code = CSR32.  Size = Medium,03/06/2015,103633,121.50,Revenue,Smart Image Workwear,21064
Chorley Borough Council,http://statistics.data.gov.uk/id/local-authority/30UE,Service Management & Support,1009,Streetscene & Leisure Contracts,Protective Clothing,40040,"Clothing, Uniforms and Laundry",5025,High Vis Yellow waterproof windproof breathable outer trousers.  Product Code = CSR32.  Size = Large,03/06/2015,103633,121.50,Revenue,Smart Image Workwear,21064
Chorley Borough Council,http://statistics.data.gov.uk/id/local-authority/30UE,Service Management & Support,1009,Streetscene & Leisure Contracts,Protective Clothing,40040,"Clothing, Uniforms and Laundry",5025,Hawk Cargo Pants.  Size = 32 Waist.  Product Code = CSR38,03/06/2015,103633,64.50,Revenue,Smart Image Workwear,21064
Chorley Borough Council,http://statistics.data.gov.uk/id/local-authority/30UE,Service Management & Support,1009,Streetscene & Leisure Contracts,Protective Clothing,40040,"Clothing, Uniforms and Laundry",5025,Hawk Cargo Pants.  Size = 34 Waist.  Product Code = CSR38,03/06/2015,103633,64.50,Revenue,Smart Image Workwear,21064
Chorley Borough Council,http://statistics.data.gov.uk/id/local-authority/30UE,Service Management & Support,1009,Streetscene & Leisure Contracts,Supplies-Grounds Maintenance,40025,"Equipment, Furniture & Materia",5023,Supply no waiting cones 20`` triangular,17/06/2015,104129,315.00,Revenue,Smart Image Workwear,21064
Chorley Borough Council,http://statistics.data.gov.uk/id/local-authority/30UE,Service Management & Support,1009,Streetscene & Leisure Contracts,Supplies-Grounds Maintenance,40025,"Equipment, Furniture & Materia",5023,Supply signs and trestles as discussed ,17/06/2015,104129,75.20,Revenue,Smart Image Workwear,21064
Chorley Borough Council,http://statistics.data.gov.uk/id/local-authority/30UE,Central Support Services,1009,"Customer, ICT & Transactional",Computer Software-Maintenance,40107,Communication and Computing,5028,Year 1 of 3 - Microsoft ESA agreement,05/06/2015,103773,"17,899.25",Revenue,Softcat Ltd,69996
Chorley Borough Council,http://statistics.data.gov.uk/id/local-authority/30UE,Democratic Represent and  Mgnt,1007,Governance,Processional Routes,40177,Miscellaneous Expenses,5034,"Provision of a stage, hand rails, delivery and return of stage, pedestrian barrier, sound system, delivery and return of barrier",12/06/2015,103912,717.50,Revenue,Star Drive Music,16840
Chorley Borough Council,http://statistics.data.gov.uk/id/local-authority/30UE,Community Development,1097,Policy & Performance,Core Funding Grants,40133,Grants and Subscriptions,5031,Provision for the delivery of a community safety support service - Year Two 1st instalment April to September 2015,24/06/2015,104225,"4,000.00",Revenue,Street Pastors,21946
Chorley Borough Council,http://statistics.data.gov.uk/id/local-authority/30UE,Capital,Capital,Housing,Grants,3002,Capital Expenditure,Capital,INV 10317 NAME AND ADDRESS REDACTED,03/06/2015,103573,"2,985.00",Capital,Stringfellow Bldg Cntrctrs Ltd,17893
Chorley Borough Council,http://statistics.data.gov.uk/id/local-authority/30UE,Unapportionable Central OHeads,1009,Governance,General Repairs - Reactive,20004,Repairs Maintenance & Alts,5005,REACTIVE blanket order for 2015.,03/06/2015,103686,385.68,Revenue,Stringfellow Bldg Cntrctrs Ltd,17893
Chorley Borough Council,http://statistics.data.gov.uk/id/local-authority/30UE,Central Support Services,1009,Health Environment & Neighbourhoods,Works In Default,40199,Miscellaneous Expenses,5034,"Use a suitable, permanent, physical means of securing any access points on the fa�ade of the building, specifically inc",05/06/2015,103796,694.59,Revenue,Stringfellow Bldg Cntrctrs Ltd,17893
Chorley Borough Council,http://statistics.data.gov.uk/id/local-authority/30UE,Unapportionable Central OHeads,1009,Governance,General Repairs - Reactive,20004,Repairs Maintenance & Alts,5005,REACTIVE blanket order for 2015.,05/06/2015,103797,"1,050.00",Revenue,Stringfellow Bldg Cntrctrs Ltd,17893
Chorley Borough Council,http://statistics.data.gov.uk/id/local-authority/30UE,Unapportionable Central OHeads,1009,Governance,General Repairs - Reactive,20004,Repairs Maintenance & Alts,5005,REACTIVE blanket order for 2015.,10/06/2015,103799,895.00,Revenue,Stringfellow Bldg Cntrctrs Ltd,17893
Chorley Borough Council,http://statistics.data.gov.uk/id/local-authority/30UE,Unapportionable Central OHeads,1009,Governance,General Repairs - Reactive,20004,Repairs Maintenance & Alts,5005,REACTIVE blanket order for 2015.,12/06/2015,103900,512.64,Revenue,Stringfellow Bldg Cntrctrs Ltd,17893
Chorley Borough Council,http://statistics.data.gov.uk/id/local-authority/30UE,Unapportionable Central OHeads,1009,Governance,General Repairs - Reactive,20004,Repairs Maintenance & Alts,5005,REACTIVE blanket order for 2015.,12/06/2015,103901,795.00,Revenue,Stringfellow Bldg Cntrctrs Ltd,17893
Chorley Borough Council,http://statistics.data.gov.uk/id/local-authority/30UE,Unapportionable Central OHeads,1009,Governance,General Repairs - Reactive,20004,Repairs Maintenance & Alts,5005,REACTIVE blanket order for 2015.,12/06/2015,103902,562.85,Revenue,Stringfellow Bldg Cntrctrs Ltd,17893
Chorley Borough Council,http://statistics.data.gov.uk/id/local-authority/30UE,Unapportionable Central OHeads,1009,Governance,General Repairs - Reactive,20004,Repairs Maintenance & Alts,5005,REACTIVE blanket order for 2015.,12/06/2015,103903,401.02,Revenue,Stringfellow Bldg Cntrctrs Ltd,17893
Chorley Borough Council,http://statistics.data.gov.uk/id/local-authority/30UE,Unapportionable Central OHeads,1009,Governance,General Repairs - Reactive,20004,Repairs Maintenance & Alts,5005,REACTIVE blanket order for 2015.,12/06/2015,103904,990.92,Revenue,Stringfellow Bldg Cntrctrs Ltd,17893
Chorley Borough Council,http://statistics.data.gov.uk/id/local-authority/30UE,Capital,Capital,Housing,Grants,3002,Capital Expenditure,Capital,INV 10395 ADDRESS REDACTED,17/06/2015,104057,750.00,Capital,Stringfellow Bldg Cntrctrs Ltd,17893
Chorley Borough Council,http://statistics.data.gov.uk/id/local-authority/30UE,Capital,Capital,Housing,Grants,3002,Capital Expenditure,Capital,INV 10382 ADDRESS REDACTED,24/06/2015,104064,"10,560.00",Capital,Stringfellow Bldg Cntrctrs Ltd,17893
Chorley Borough Council,http://statistics.data.gov.uk/id/local-authority/30UE,Unapportionable Central OHeads,1009,Governance,General Repairs - Reactive,20004,Repairs Maintenance & Alts,5005,REACTIVE blanket order for 2015.,26/06/2015,104191,539.12,Revenue,Stringfellow Bldg Cntrctrs Ltd,17893
Chorley Borough Council,http://statistics.data.gov.uk/id/local-authority/30UE,Unapportionable Central OHeads,1009,Governance,General Repairs - Reactive,20004,Repairs Maintenance & Alts,5005,REACTIVE blanket order for 2015.,26/06/2015,104233,629.20,Revenue,Stringfellow Bldg Cntrctrs Ltd,17893
Chorley Borough Council,http://statistics.data.gov.uk/id/local-authority/30UE,Unapportionable Central OHeads,1009,Governance,General Repairs - Reactive,20004,Repairs Maintenance & Alts,5005,REACTIVE blanket order for 2015.,26/06/2015,104237,420.00,Revenue,Stringfellow Bldg Cntrctrs Ltd,17893
Chorley Borough Council,http://statistics.data.gov.uk/id/local-authority/30UE,Capital,Capital,Housing,Grants,3002,Capital Expenditure,Capital,INV 10454 ADDRESS REDACTED,24/06/2015,104253,"2,915.00",Capital,Stringfellow Bldg Cntrctrs Ltd,17893
Chorley Borough Council,http://statistics.data.gov.uk/id/local-authority/30UE,Unapportionable Central OHeads,1009,Shared Service Arrangement,Pensions Increase Act Payments,18005,Indirect Employee Expenses,5002,Rechargable Pensions,17/06/2015,104077,"2,629.94",Revenue,Tameside MBC-Gmpf,17034
Chorley Borough Council,http://statistics.data.gov.uk/id/local-authority/30UE,Planning Policy,1092,Streetscene & Leisure Contracts,Consultants` Fees,40077,Services,5027,Additional work for calculating costs of remedial works,10/06/2015,103966,663.30,Revenue,TerraConsult,68301
Chorley Borough Council,http://statistics.data.gov.uk/id/local-authority/30UE,Community Development,1097,Policy & Performance,Core Funding Grants,40133,Grants and Subscriptions,5031,Prov for the delivery of an arts and employability programme for young people - Year Two 1st instalment (April to Sept 15),24/06/2015,104232,"5,000.00",Revenue,The Arts Partnership,18943
Chorley Borough Council,http://statistics.data.gov.uk/id/local-authority/30UE,Economic Development,1096,Economic Development,Miscellaneous Expenses,40200,Miscellaneous Expenses,5034,For keynote speaker at June Choose Chorley Network.  Fee 1800 plus expenses.,24/06/2015,104276,"1,896.20",Revenue,The Directors Centre,70611
Chorley Borough Council,http://statistics.data.gov.uk/id/local-authority/30UE,Democratic Represent and  Mgnt,1007,Governance,Data Protection Registration,40173,Miscellaneous Expenses,5034,data protect registration,17/06/2015,104102,350.00,Revenue,The Information Commissioner,16278
Chorley Borough Council,http://statistics.data.gov.uk/id/local-authority/30UE,Capital,Capital,Streetscene & Leisure Contracts,Main Contractor,3007,Capital Expenditure,Capital,Engineering input,10/06/2015,103964,"1,050.00",Capital,The Morton Partnership,67163
Chorley Borough Council,http://statistics.data.gov.uk/id/local-authority/30UE,Central Support Services,1009,Health Environment & Neighbourhoods,Miscellaneous Expenses,40200,Miscellaneous Expenses,5034,Printing of Newsletters Chorley Moor area in partnership with CMRG,17/06/2015,103862,346.40,Revenue,The Print Quarter,17987
Chorley Borough Council,http://statistics.data.gov.uk/id/local-authority/30UE,Democratic Represent and  Mgnt,1007,Governance,Printing of Year Book,40045,"Printing, Stationery & General",5026,"DIARY BOOKLETS 2015/2016 - vanilla 180gsm card cover printed in 873.93 colour front and black reverse, matt laminated",17/06/2015,104110,873.93,Revenue,The Print Quarter,17987
Chorley Borough Council,http://statistics.data.gov.uk/id/local-authority/30UE,Economic Development,1096,Economic Development,Publicity - Advertising,40157,Miscellaneous Expenses,5034,To supply Flag Pole brackets as per quote,12/06/2015,103917,"1,050.00",Revenue,Town Centre Trees,57436
Chorley Borough Council,http://statistics.data.gov.uk/id/local-authority/30UE,Corporate Management,1008,Shared Service Arrangement,Treasury Management Service,40065,Services,5027,Brokerage Fees 15/16,17/06/2015,104072,347.94,Revenue,Tullett Prebon (UK) Ltd,19053
Chorley Borough Council,http://statistics.data.gov.uk/id/local-authority/30UE,Service Management & Support,1009,Streetscene & Leisure Contracts,Petrol,30005,Direct Transport Costs,5016,streetscene,10/06/2015,103583,414.47,Revenue,Uk Fuels Ltd,57996
Chorley Borough Council,http://statistics.data.gov.uk/id/local-authority/30UE,Service Management & Support,1009,Streetscene & Leisure Contracts,Petrol,30005,Direct Transport Costs,5016,ranger,10/06/2015,103583,29.75,Revenue,Uk Fuels Ltd,57996
Chorley Borough Council,http://statistics.data.gov.uk/id/local-authority/30UE,Democratic Represent and  Mgnt,1007,Streetscene & Leisure Contracts,Use Of Transport - Mayoral Car,30015,Transport Recharges,5017,mayoral car,10/06/2015,103583,46.69,Revenue,Uk Fuels Ltd,57996
Chorley Borough Council,http://statistics.data.gov.uk/id/local-authority/30UE,Central Support Services,1009,Streetscene & Leisure Contracts,Petrol,30005,Direct Transport Costs,5016,guard card,10/06/2015,103583,3.34,Revenue,Uk Fuels Ltd,57996
Chorley Borough Council,http://statistics.data.gov.uk/id/local-authority/30UE,Unapportionable Central OHeads,1009,HR & Org. Development,Miscellaneous Expenses,40200,Miscellaneous Expenses,5034,Levels 1-5,26/06/2015,104320,"1,428.90",Revenue,UK Healthcare (BDHSC),17241
Chorley Borough Council,http://statistics.data.gov.uk/id/local-authority/30UE,Control Accounts,Control,HR & Org. Development,General Balances,100,Balance Sheet,Balance,Top Ups,26/06/2015,104320,503.82,Revenue,UK Healthcare (BDHSC),17241
Chorley Borough Council,http://statistics.data.gov.uk/id/local-authority/30UE,Unapportionable Central OHeads,1009,"Customer, ICT & Transactional",Postages,40082,Communication and Computing,5028,Imail Eco Business mono Letters - Hybrid,03/06/2015,103691,731.98,Revenue,UKMAIL Ltd (Mail),57758
Chorley Borough Council,http://statistics.data.gov.uk/id/local-authority/30UE,Unapportionable Central OHeads,1009,"Customer, ICT & Transactional",Postages,40082,Communication and Computing,5028,Imail Eco Business mono Letters - Hybrid,05/06/2015,103831,"1,255.90",Revenue,UKMAIL Ltd (Mail),57758
Chorley Borough Council,http://statistics.data.gov.uk/id/local-authority/30UE,Unapportionable Central OHeads,1009,"Customer, ICT & Transactional",Postages,40082,Communication and Computing,5028,Imail Eco Business mono Letters - Hybrid,24/06/2015,104095,550.55,Revenue,UKMAIL Ltd (Mail),57758
Chorley Borough Council,http://statistics.data.gov.uk/id/local-authority/30UE,Unapportionable Central OHeads,1009,"Customer, ICT & Transactional",Postages,40082,Communication and Computing,5028,Imail Eco Business mono Letters - Hybrid,26/06/2015,104279,579.73,Revenue,UKMAIL Ltd (Mail),57758
Chorley Borough Council,http://statistics.data.gov.uk/id/local-authority/30UE,Unapportionable Central OHeads,1009,"Customer, ICT & Transactional",Postages,40082,Communication and Computing,5028,Imail Eco Business mono Letters - Hybrid,26/06/2015,104280,479.02,Revenue,UKMAIL Ltd (Mail),57758
Chorley Borough Council,http://statistics.data.gov.uk/id/local-authority/30UE,Control Accounts,Control,Shared Service Arrangement,General Balances,100,Balance Sheet,Balance,june 2015 Deductions,17/06/2015,104108,"1,410.46",Revenue,Unify Credit Union Ltd,55509
Chorley Borough Council,http://statistics.data.gov.uk/id/local-authority/30UE,Democratic Represent and  Mgnt,1007,Governance,Water - Metered Supplies,20022,Water Services,5009,Allotments,03/06/2015,103610,288.22,Revenue,United Utilities Water Plc,17926
Chorley Borough Council,http://statistics.data.gov.uk/id/local-authority/30UE,Unapportionable Central OHeads,1009,Governance,Water - Metered Supplies,20022,Water Services,5009,Town Hall,26/06/2015,104255,750.73,Revenue,United Utilities Water Plc,17926
Chorley Borough Council,http://statistics.data.gov.uk/id/local-authority/30UE,Democratic Represent and  Mgnt,1007,Governance,Water - Metered Supplies,20022,Water Services,5009,Eaves Green CC,26/06/2015,104256,283.62,Revenue,United Utilities Water Plc,17926
Chorley Borough Council,http://statistics.data.gov.uk/id/local-authority/30UE,Development Control,1091,Planning,Professional Fees,40063,Services,5027,Planning Officer Support to be provided from 26 January 2015 @ 125 per application returned any mileage costs incurred,03/06/2015,103660,"1,368.00",Revenue,Urban Vision Partnership Ltd,21181
Chorley Borough Council,http://statistics.data.gov.uk/id/local-authority/30UE,Development Control,1091,Planning,Professional Fees,40063,Services,5027,Planning Officer Support to be provided from 26 January 2015 @ 125 per application returned any mileage costs incurred,24/06/2015,104111,"2,327.50",Revenue,Urban Vision Partnership Ltd,21181
Chorley Borough Council,http://statistics.data.gov.uk/id/local-authority/30UE,Democratic Represent and  Mgnt,1007,Governance,Processional Routes,40177,Miscellaneous Expenses,5034,Provision of traffic safety and management for the Freedom of the Borough event to be held on Saturday 6th June 2015 inc,12/06/2015,104008,965.00,Revenue,Ventbrook Ltd,69891
Chorley Borough Council,http://statistics.data.gov.uk/id/local-authority/30UE,Corporate Management,1008,Streetscene & Leisure Contracts,Unitary Payment(S),50009,Private Contractors,5042,Provision of household waste and recycling collections and ancillary services for 2015/16,19/06/2015,104168,"275,439.19",Revenue,Veolia ES (UK) Ltd,20748
Chorley Borough Council,http://statistics.data.gov.uk/id/local-authority/30UE,Economic Development,1096,Economic Development,Grants To Other Organisations,40127,Grants and Subscriptions,5031,Shop Front Imporvement Grant,10/06/2015,103875,"6,522.00",Revenue,Victoria Garside,65501
Chorley Borough Council,http://statistics.data.gov.uk/id/local-authority/30UE,Unapportionable Central OHeads,1009,Shared Service Arrangement,Car Leasing Payment,14100,Direct Employee Expenses,5001,Car Leasing,03/06/2015,103669,"1,257.38",Revenue,VWFS UK Ltd T/A Volkswagen Group Leasing,56010
Chorley Borough Council,http://statistics.data.gov.uk/id/local-authority/30UE,Unapportionable Central OHeads,1009,Shared Service Arrangement,Car Leasing Payment,14100,Direct Employee Expenses,5001,Car Leasing,03/06/2015,103669,125.74,Revenue,VWFS UK Ltd T/A Volkswagen Group Leasing,56010
Chorley Borough Council,http://statistics.data.gov.uk/id/local-authority/30UE,Control Accounts,Control,Shared Service Arrangement,Manual Control Account,1,Balance Sheet,Balance,Car Leasing,03/06/2015,103669,-125.74,Revenue,VWFS UK Ltd T/A Volkswagen Group Leasing,56010
Chorley Borough Council,http://statistics.data.gov.uk/id/local-authority/30UE,Unapportionable Central OHeads,1009,Shared Service Arrangement,Car Leasing Payment,14100,Direct Employee Expenses,5001,Car Leasing,03/06/2015,103669,-57.82,Revenue,VWFS UK Ltd T/A Volkswagen Group Leasing,56010
Chorley Borough Council,http://statistics.data.gov.uk/id/local-authority/30UE,Unapportionable Central OHeads,1009,Shared Service Arrangement,Car Leasing Payment,14100,Direct Employee Expenses,5001,Car Leasing,03/06/2015,103669,5.78,Revenue,VWFS UK Ltd T/A Volkswagen Group Leasing,56010
Chorley Borough Council,http://statistics.data.gov.uk/id/local-authority/30UE,Control Accounts,Control,Shared Service Arrangement,Manual Control Account,1,Balance Sheet,Balance,Car Leasing,03/06/2015,103669,-5.78,Revenue,VWFS UK Ltd T/A Volkswagen Group Leasing,56010
Chorley Borough Council,http://statistics.data.gov.uk/id/local-authority/30UE,Service Management & Support,1009,Streetscene & Leisure Contracts,Supplies-Grounds Maintenance,40025,"Equipment, Furniture & Materia",5023,Summer Bedding Plants 2015,12/06/2015,103924,"8,307.29",Revenue,Walkers Oakfield Nurseries,63090
Chorley Borough Council,http://statistics.data.gov.uk/id/local-authority/30UE,Service Management & Support,1009,Streetscene & Leisure Contracts,Vehicle Maintenance,30045,Direct Transport Costs,5016,Supply leaf spring and U bolts for DK57KVT as discussed,12/06/2015,103928,479.79,Revenue,Warrington Vehicle Centre Limited,18545
Chorley Borough Council,http://statistics.data.gov.uk/id/local-authority/30UE,Unapportionable Central OHeads,1009,Chief Executives Office,Postages,40082,Communication and Computing,5028,Weekly mail collection Week 13 - Week 26,10/06/2015,103905,416.77,Revenue,Whistl North Limited,67256
Chorley Borough Council,http://statistics.data.gov.uk/id/local-authority/30UE,Unapportionable Central OHeads,1009,Chief Executives Office,Postages,40082,Communication and Computing,5028,Weekly mail collection Week 13 - Week 26,10/06/2015,103906,514.83,Revenue,Whistl North Limited,67256
Chorley Borough Council,http://statistics.data.gov.uk/id/local-authority/30UE,Unapportionable Central OHeads,1009,Chief Executives Office,Postages,40082,Communication and Computing,5028,Weekly mail collection Week 13 - Week 26,10/06/2015,103907,596.25,Revenue,Whistl North Limited,67256
Chorley Borough Council,http://statistics.data.gov.uk/id/local-authority/30UE,Unapportionable Central OHeads,1009,Chief Executives Office,Postages,40082,Communication and Computing,5028,Weekly mail collection Week 13 - Week 26,10/06/2015,103908,375.53,Revenue,Whistl North Limited,67256
Chorley Borough Council,http://statistics.data.gov.uk/id/local-authority/30UE,Capital,Capital,Streetscene & Leisure Contracts,Other Capital Related Fees,3024,Capital Expenditure,Capital,"Anodised Aluminium Finish Single Door Noticeboard A1 style, size 1050 x 750mm Portrait Twin Matching post set 60 x 40",03/06/2015,103672,470.00,Capital,White Hill Direct Ltd.,64098
Chorley Borough Council,http://statistics.data.gov.uk/id/local-authority/30UE,Democratic Represent and  Mgnt,1007,Streetscene & Leisure Contracts,Consultants` Fees,40077,Services,5027,Curatorial Consultancy fees May 2015. 3  days  on site at Astley Hall @ 116.66 per day,05/06/2015,103839,349.98,Revenue,Whittle and Draper Fine Art,52271
Chorley Borough Council,http://statistics.data.gov.uk/id/local-authority/30UE,Democratic Represent and  Mgnt,1007,Streetscene & Leisure Contracts,Consultants` Fees,40077,Services,5027,Curatorial consultancy fees June 2015. 3  days  on site at Astley Hall @ 116.66 per day. 349.98 plus VAT,24/06/2015,104190,349.98,Revenue,Whittle and Draper Fine Art,52271
Chorley Borough Council,http://statistics.data.gov.uk/id/local-authority/30UE,Central Support Services,1009,"Customer, ICT & Transactional",Computer Equipment-Maintenance,40105,Communication and Computing,5028,"Renewal of hardware maintenance contract 22408 to cover servers, overland & quantum tape drives, wide format printer ",05/06/2015,103837,"6,696.00",Revenue,Willow Starcom Ltd,20541
Chorley Borough Council,http://statistics.data.gov.uk/id/local-authority/30UE,Unapportionable Central OHeads,1009,Shared Service Arrangement,Publications,40054,"Printing, Stationery & General",5026,Subscription to the CCH Reference Service for VAT - Standard Online Package from 1st June 2015 to 31st May 2016,19/06/2015,104045,430.00,Revenue,Wolters Kluwer (UK) Ltd,16273
Chorley Borough Council,http://statistics.data.gov.uk/id/local-authority/30UE,Control Accounts,Control,Shared Service Arrangement,Manual Control Account,1,Balance Sheet,Balance,refund,12/06/2015,CRREF41,"2,205.00",Revenue,Zurich Insurance Company,16236
